{"text_format":"1","workbook":"xlsx","n_sheets":3,"sheets":["SQL Statement","Лист1","Sheet1"],"not_rendered":{"charts":0,"images":0,"macros":1,"external_links":0,"defined_names":1,"comments":0,"pivot_tables":0},"unopened":[],"bounds":{"document_bytes":16777216,"sheet_cells":100000,"rows_first":2000,"rows_last":500,"rows_between":2000,"halvings":0,"cell_chars":16384,"cell_head_chars":4096},"cells_cut":0,"cells_raw":0,"read":"whole","date_system":"1900"}

{"sheet":"SQL Statement","index":0,"n_rows":1,"n_cols":1,"rows_kept":1,"cut":false,"hidden":true,"merged":[]}
["select dt.a_subs_number \"Номер абонента\"\n,cl.legal_status \"Тип клиента\"\n,dt.connection_type \"Тип звонка\"\n,d.name \"Направление\"\n,dt.direction_code \"Код направления\"\n,round(dt.call_duration/60,2) \"Точное количество минут\"\n,sf.chargeble_volume \"Протариф. количество минут\"\n,t.name \"Название ТП\"\n,case when sf.service_date between to_date('0115', 'mmrr') and add_months(to_date('0115', 'mmrr'),1)-1/86400 and sf.servkind_code in ('CNT_TLF_199_МГ','CT_TLF_199_МГ') then sf.summa\n      else null\n  end \"Сумма за МГ 012015\"\n,case when sf.service_date between to_date('0115', 'mmrr') and add_months(to_date('0115', 'mmrr'),1)-1/86400 and sf.servkind_code in ('CNT_TLF_199_МН','CT_TLF_199_МН') then sf.summa\n      else null\n  end \"Сумма за МН 012015\"\n,case when sf.service_date between to_date('0215', 'mmrr') and add_months(to_date('0215', 'mmrr'),1)-1/86400 and sf.servkind_code in ('CNT_TLF_199_МГ','CT_TLF_199_МГ') then sf.summa\n      else null\n  end \"Сумма за МГ 022015\"\n,case when sf.service_date between to_date('0215', 'mmrr') and add_months(to_date('0215', 'mmrr'),1)-1/86400 and sf.servkind_code in ('CNT_TLF_199_МН','CT_TLF_199_МН') then sf.summa\n      else null\n  end \"Сумма за МН 022015\"\n,case when sf.service_date between to_date('0315', 'mmrr') and add_months(to_date('0315', 'mmrr'),1)-1/86400 and sf.servkind_code in ('CNT_TLF_199_МГ','CT_TLF_199_МГ') then sf.summa\n      else null\n  end \"Сумма за МГ 032015\"\n,case when sf.service_date between to_date('0315', 'mmrr') and add_months(to_date('0315', 'mmrr'),1)-1/86400 and sf.servkind_code in ('CNT_TLF_199_МН','CT_TLF_199_МН') then sf.summa\n      else null\n  end \"Сумма за МН 032015\"\nfrom tr_t_service_facts sf, tr_t_cdr_data dt, ct_t_object o, ct_t_contract c, cl_t_client cl, rf_t_direction_codes dc, rf_t_directions d, tf_t_tariffplane_hist th, tf_t_tariff_planes t\nwhere sf.service_date between to_date('0115', 'mmrr') and add_months(to_date('0315', 'mmrr'),1)-1/86400\n  and sf.servclass_code = 'PHONE'\n  and sf.servkind_code in ('CNT_TLF_199_МГ','CNT_TLF_199_МН','CT_TLF_199_МГ','CT_TLF_199_МН')\n  and dt.id = sf.session_id\n  and dt.start_datetime between to_date('0115', 'mmrr') and add_months(to_date('0315', 'mmrr'),1)-1/86400\n  and o.id = sf.object_id\n  and c.id = sf.contract_id\n  and cl.id = c.client_id\n  and dt.dircode_id = dc.id\n  and dc.direction_id = d.id\n  and sf.trfplnhist_id = th.id\n  and th.tarifplane_code = t.code\n  --and c.id = 1697175"]

{"sheet":"Лист1","index":1,"n_rows":1124,"n_cols":3,"rows_kept":1124,"cut":false,"hidden":false,"merged":[[218,0,218,2],[228,0,228,2],[249,0,249,2],[252,0,252,2],[271,0,271,2],[281,0,281,2],[288,0,288,2],[293,0,293,2],[1111,0,1111,2],[404,0,404,2],[409,0,409,2],[413,0,413,2],[418,0,418,2],[369,0,369,2],[373,0,373,2],[376,0,376,2],[379,0,379,2],[385,0,385,2],[387,0,387,2],[427,0,427,2],[431,0,431,2],[435,0,435,2],[437,0,437,2],[448,0,448,2],[1117,0,1117,2],[54,0,54,2],[58,0,58,2],[68,0,68,2],[77,0,77,2],[86,0,86,2],[89,0,89,2],[192,0,192,2],[200,0,200,2],[1072,0,1072,2],[1084,0,1084,2],[1085,0,1085,2],[1100,0,1100,2],[1103,0,1103,2],[1107,0,1107,2],[162,0,162,2],[183,0,183,2],[191,0,191,2],[124,0,124,2],[132,0,132,2],[148,0,148,2],[150,0,150,2],[154,0,154,2],[158,0,158,2],[1,0,1,2],[9,0,9,2],[15,0,15,2],[39,0,39,2],[40,0,40,2],[160,0,160,2],[395,0,395,2],[401,0,401,2],[233,0,233,2],[238,0,238,2],[241,0,241,2],[246,0,246,2],[337,0,337,2],[338,0,338,2],[351,0,351,2],[352,0,352,2],[362,0,362,2],[306,0,306,2],[314,0,314,2],[318,0,318,2],[324,0,324,2],[329,0,329,2],[333,0,333,2],[359,0,359,2],[451,0,451,2],[456,0,456,2],[458,0,458,2],[461,0,461,2],[463,0,463,2],[466,0,466,2],[468,0,468,2],[471,0,471,2],[474,0,474,2],[476,0,476,2],[478,0,478,2],[482,0,482,2],[484,0,484,2],[486,0,486,2],[488,0,488,2],[490,0,490,2],[492,0,492,2],[495,0,495,2],[498,0,498,2],[500,0,500,2],[503,0,503,2],[505,0,505,2],[508,0,508,2],[512,0,512,2],[516,0,516,2],[518,0,518,2],[519,0,519,2],[521,0,521,2],[524,0,524,2],[529,0,529,2],[531,0,531,2],[533,0,533,2],[536,0,536,2],[544,0,544,2],[551,0,551,2],[555,0,555,2],[558,0,558,2],[561,0,561,2],[564,0,564,2],[569,0,569,2],[578,0,578,2],[583,0,583,2],[597,0,597,2],[601,0,601,2],[607,0,607,2],[610,0,610,2],[612,0,612,2],[617,0,617,2],[620,0,620,2],[635,0,635,2],[637,0,637,2],[639,0,639,2],[623,0,623,2],[625,0,625,2],[627,0,627,2],[630,0,630,2],[632,0,632,2],[927,0,927,2],[934,0,934,2],[945,0,945,2],[641,0,641,2],[643,0,643,2],[645,0,645,2],[647,0,647,2],[650,0,650,2],[657,0,657,2],[694,0,694,2],[712,0,712,2],[715,0,715,2],[1070,0,1070,2],[716,0,716,2],[962,0,962,2],[714,0,714,2],[1046,0,1046,2],[1025,0,1025,2],[1038,0,1038,2],[1040,0,1040,2],[1045,0,1045,2],[1058,0,1058,2],[1061,0,1061,2],[947,0,947,2],[949,0,949,2],[953,0,953,2],[961,0,961,2],[999,0,999,2],[1012,0,1012,2],[1066,0,1066,2],[738,0,738,2],[741,0,741,2],[759,0,759,2],[779,0,779,2],[788,0,788,2],[904,0,904,2]]}
["Код услуги","Наименование","Цена "]
["1. ГЕМАТОЛОГИЯ "]
["1.1","Общий анализ крови + СОЭ",180]
["1.2","Общий анализ крови + СОЭ, L формула",250]
["1.3","Гематокрит",150]
["1.4","Определение ретикулоцитов",230]
["1.8","Исследование на плазмодии малярии",250]
["1.10","Определение осмотической резистентности эритроцитов",250]
["1.14","Определение активных форм кислорода",1500]
["2. ИЗОСЕРОЛОГИЯ "]
["2.2","Групповые антитела",1200]
["2.3","Резусные антитела",800]
["2.4","Прямая проба Кумбса на гемолитическую анемию",700]
["2.5","Определение Kell антигена (К)",650]
["2.6","Определение наличия антигенов эритроцитов C, с, Е, е, CW, К и k",600]
["3.  ГЕМОСТАЗ "]
["3.1","Фибриноген",220]
["3.2","Протромбин (Протромбиновое время, Процент протромбина по Квику, МНО)",220]
["3.3","Тромбиновое время",220]
["3.4","АЧТВ",220]
["3.5","Антитромбин III",310]
["3.6","Волчаночный антикоагулянт",550]
["3.7","Д-димер",500]
["3.8","РФМК (Растворимые фибрин-мономерные комплексы)",200]
["3.9","ХIIа зависимый фибринолиз",200]
["3.10","Плазминоген",270]
["3.11","Определение активности системы протеина С",270]
["3.12","Протеин С",830]
["3.13","Протеин S",1050]
["3.14","Активность фактора Виллебранда",650]
["3.15","Определение резистентности к активированному протеину С (наличие мутантного фактора V)",650]
["3.16","Фактор VII",550]
["3.17","Фактор VIII",630]
["3.18","Фактор IX",630]
["3.19","Фактор X",550]
["3.20","Анти Ха активность гепарина",550]
["3.21","Ингибитор активатора плазминогена",650]
["3.22","Коагулограмма суммарная (АЧТВ, ТВ, Фибриноген, Протромбиновое время, МНО, Процент протромбина по Квику)",800]
["3.23","Гемостазиограмма суммарная (Фибриноген, Тромбиновое время, Антитромбин III, РФМК, ХIIа зависимый фибринолиз, Плазминоген)",1310]
["4. БИОХИМИЧЕСКИЕ ИССЛЕДОВАНИЯ КРОВИ "]
["4.1 Ферменты "]
["4.1.1","Аланинаминотрансфераза (АЛТ)",140]
["4.1.2","Аспартатаминотрансфераза (АСТ)",140]
["4.1.3","Щелочная фосфатаза",140]
["4.1.4","Кислая фосфатаза",170]
["4.1.5","Гамма-глутамилтрансфераза (ГГТ)",150]
["4.1.6","Лактатдегидрогеназа (ЛДГ)",140]
["4.1.7","Лактатдегидрогеназа (1,2 фракции)",250]
["4.1.8","Холинэстераза",220]
["4.1.9","Альфа-амилаза",170]
["4.1.10","Липаза",180]
["4.1.11","Креатинкиназа (КФК)",140]
["4.1.12","Креатинкиназа-МВ",260]
["4.1.13","Амилаза панкреатическая",270]
["4.2  Обмен белков "]
["4.2.1","Альбумин",140]
["4.2.2","Общий белок",140]
["4.2.3","Белковые фракции (включает определение общего белка и альбумина)",500]
["4.3 Специфические белки "]
["4.3.1","Миоглобин",900]
["4.3.2","С-реактивный белок ",210]
["4.3.3","Гаптоглобин",550]
["4.3.4","Альфа-1-антитрипсин",550]
["4.3.5","Кислый альфа-1-гликопротеин (орозомукоид)",550]
["4.3.6","Церулоплазмин",400]
["4.3.7","Эозинофильный катионный белок",800]
["4.3.8","Ревматоидный фактор",200]
["4.3.9","АСЛ-О (Антистрептолизин-О)",230]
["4.4 Обмен углеводов "]
["4.4.1","Глюкоза (Сыворотка)",140]
["4.4.2","Гликированный гемоглобин А1с",400]
["4.4.3","Фруктозамин",370]
["4.4.4","Глюкоза (Плазма)",160]
["4.4.5","Молочная кислота (лактат)",550]
["4.4.6","Тест толерантности к глюкозе. Натощак (плазма)",160]
["4.4.7","Тест толерантности к глюкозе. С нагрузкой (плазма)",160]
["4.4.8","Тест толерантности к глюкозе. Через 2 часа (плазма)",160]
["4.5 Липидный обмен "]
["4.5.1","Триглицериды",140]
["4.5.2","Холестерин общий",160]
["4.5.3","Холестерин липопротеидов высокой плотности (ЛПВП, HDL)",200]
["4.5.4","Холестерин липопротеидов низкой плотности (ЛПНП, LDL)",200]
["4.5.5","Аполипопротеин А1",600]
["4.5.6","Аполипопротеин В",600]
["4.5.7","Липопротеин (а)",500]
["4.5.8","Холестерин общий,  Липопротеиды высокой плотности (ЛПВП, HDL), Липопротеиды низкой плотности (ЛПНП), Триглицериды, Коэффициент атерогенности",840]
["4.6 Обмен пигментов "]
["4.6.1","Билирубин общий",140]
["4.6.2","Билирубин прямой",140]
["4.7 Электролиты и микроэлементы "]
["4.7.1","Натрий, калий, хлор (Na/K/Cl)",360]
["4.7.2","Кальций общий",140]
["4.7.3","Кальций ионизированный",300]
["4.7.4","Магний (сыворотка)",140]
["4.7.5","Фосфор неорганический",140]
["4.7.6","Цинк",270]
["4.7.7","Медь",270]
["4.7.8","Литий (сыворотка )",1000]
["4.7.9","Бор (сыворотка)",1000]
["4.7.10","Натрий (сыворотка )",1000]
["4.7.1.1","Натрий (Na)",140]
["4.7.11","Магний (волосы)",1000]
["4.7.12","Алюминий (сыворотка)",1000]
["4.7.1.2","Калий (K)",140]
["4.7.1.3","Хлор (Cl)",100]
["4.7.13","Кремний (сыворотка)",1000]
["4.7.14","Калий (сыворотка)",1000]
["4.7.15","Кальций (волосы)",1000]
["4.7.16","Титан (сыворотка )",1000]
["4.7.17","Хром (сыворотка)",1000]
["4.7.18","Марганец (сыворотка )",1000]
["4.7.19","Железо (волосы или моча)",1000]
["4.7.20","Кобальт (сыворотка)",1000]
["4.7.21","Никель (сыворотка )",1000]
["4.7.22","Медь (волосы или моча)",1000]
["4.7.23","Цинк (волосы или моча)",1000]
["4.7.24","Мышьяк (сыворотка)",1000]
["4.7.25","Селен (сыворотка)",1000]
["4.7.26","Молибден (сыворотка )",1000]
["4.7.27","Кадмий (сыворотка и)",1000]
["4.7.28","Сурьма (сыворотка)",1000]
["4.7.29","Ртуть (сыворотка )",1000]
["4.7.30","Свинец (сыворотка)",1000]
["4.7.31","Комплексный анализ крови на наличие тяжёлых металлов и микроэлементов 23 показателя (Li, B, Na, Mg, Al, Si, K, Ca, Ti, Cr, Mn, Fe, Co, Ni, Cu, Zn, As, Se, Mo, Cd, Sb, Hg, Pb) (сыворотка)",6500]
["4.8 Диагностика анемии"]
["4.8.1","Железо",150]
["4.8.2","Трансферрин",300]
["4.8.3","Ферритин",400]
["4.8.4","Латентная железосвязывающая способность сыворотки",150]
["4.8.5","Общая железосвязывающая способность сыворотки (железо+латентная железосвязывающая способность сыворотки)",300]
["4.8.6","Витамин В 9 (фолиевая кислота)",700]
["4.8.7","Витамин В 12 (цианкобаламин) ",570]
["4.9 Витамины, жирные кислоты "]
["4.9.1","Витамин А (ретинол)",2200]
["4.9.2","Витамин В 1 (тиамин)",2200]
["4.9.3","Витамин В 5 (пантотеновая кислота)",2200]
["4.9.4","Витамин В 6 (пиридоксин)",2200]
["4.9.7","Витамин С (аскорбиновая кислота)",2200]
["4.9.8","Витамин D (кальциферол, 25(OH) D)",2000]
["4.9.9","Витамин Е (токоферол)",2200]
["4.9.10","Витамин К (филлохинон)",2200]
["4.9.11","Жирорастворимые витамины (A, D, E, K)",5000]
["4.9.12","Водорастворимые витамины (B1, B5, B6, В9, В12, С)",8250]
["4.9.13","Комплексный анализ крови на витамины (A, D, E, K, C, B1, B5, B6, В9, B12)",14500]
["4.9.14","Ненасыщенные жирные кислоты семейства Омега-3(эйкозапентаеновая кислота, докозагексаеновая кислота, Витамин Е (токоферолл))",7500]
["4.9.15","Определение Омега-3 индекса (оценка риска внезапной сердечной смерти, инфаркта миокарда и других сердечно-сосудистых заболеваний)",6150]
["4.9.16","Комплексный анализ крови на ненасыщенные жирные кислотысемейства Омега-6 (линолевая кислота, линоленовая кислота, арахидоновая кислота)",6600]
["4.9.17","Комплексная оценка оксидативного стресса (коэнзим Q10, витамин Е,витамин С, бета-каротин, глутатион, малоновый диальдегид, 8-ОН- дезоксигуанозин)",12500]
["4.10 Аминокислоты "]
["4.10.1","Комплексный анализ крови на аминокислоты (12 показателей- аланин,аргинин, аспарагиновая кислота , цитруллин, глутаминовая кислота, глицин, метионин, орнитин, фенилаланин, тирозин, валин, лейцин / изолейцин ",5500]
["4.11 Азотистый обмен "]
["4.11.1","Креатинин",140]
["4.11.2","Азот мочевины",140]
["4.11.3","Мочевая кислота",140]
["4.12 Маркеры сердечно-сосудистой недостаточности"]
["4.12.1","Мозговой натрийуретический пептид B (BNP)",2475]
["4.12.2","Тропонин I",750]
["4.12.3","Гомоцистеин",1000]
["4.13 Лекарственный мониторинг"]
["4.13.1","Вальпроевая кислота (и её производные),количественно",1300]
["4.14 Составные анализы "]
["4.14.2","ФПП (АЛТ, АСТ, билирубин общий,билирубин прямой, ГГТ, щелочная фосфатаза, белок общий )",960]
["5. ИССЛЕДОВАНИЯ МОЧИ"]
["5.1","Альфа-амилаза мочи (диастаза)",170]
["5.3","Микроальбумин мочи",300]
["5.4","Креатинин мочи",250]
["5.5","Мочевина мочи",150]
["5.6","Мочевая кислота мочи",250]
["5.9","Кальций общий мочи",370]
["5.10","Фосфор неорганический мочи",370]
["5.11","Магний мочи",370]
["5.12","Бета-2-микроглобулин мочи",590]
["5.13","Дезоксипиридинолин (DPD) мочи",1500]
["5.14","Натрий, калий, хлор мочи (Na/K/Cl)",350]
["5.15","17-кетостероиды (андростерон, андростендион, ДГЭА, этиохоланолон, эпиандростерон)",2000]
["5.16","Общие метанефрины и норметанефрины",2850]
["5.17","Свободные метанефрины и норметанефрины",2850]
["5.18","Проба Реберга",260]
["5.19","Кортизол мочи",590]
["5.20","Катехоламины мочи (адреналин, норадреналин, дофамин)",2850]
["5.21","Катехоламины мочи и их метаболиты (адреналин, норадреналин,дофамин, ванилилминдальная кислота, гомованилиновая кислота, 5- гидроксииндолуксусная кислота)",5700]
["5.22","Метаболиты катехоламинов в моче (ванилилминдальная кислота, гомованилиновая кислота, 5-гидроксииндолуксусная кислота)",2850]
["5.26","Оксалаты в моче",800]
["6.1 Исследования мочи "]
["6.1.1","Общий анализ мочи ",220]
["6.1.2","Анализ мочи по Нечипоренко",250]
["6.1.3","Анализ мочи по Зимницкому",250]
["6.1.4","Суточная моча на сахар",150]
["6.1.5","Исследование лейкоформулы мочи",230]
["6.1.6","3-х стаканная проба",350]
["6.1.7","Суточная моча на белок ",150]
["7. ГОРМОНАЛЬНЫЕ ИССЛЕДОВАНИЯ  Функция щитовидной железы (7.1)"]
["7.1 Функция щитовидной железы "]
["7.1.1","ТТГ -Тиреотропный гормон ",300]
["7.1.2","Т4 свободный - Тироксин свободный ",300]
["7.1.3","Т3 свободный - Трийодтиронин свободный ",300]
["7.1.6","Анти -ТГ - Антитела к тиреоглобулину ",350]
["7.1.7","Анти ТПО - Антитела к микросомальной тиреопероксидазе ",350]
["7.1.8","ТГ - Тиреоглобулин",310]
["7.1.9","АТ рТТГ - Антитела к рецепторам тиреотропного гормона ",1400]
["7.2 Тесты репродукции "]
["7.2.1","ФСГ -Фолликулостимулирующий гормон ",300]
["7.2.2","ЛГ - Лютеинизирующий гормон",300]
["7.2.3","Пролактин ",300]
["7.2.4","Эстрадиол (Е2) ",350]
["7.2.5","Прогестерон",300]
["7.2.6","Гидроксипрогестерон (17-OH-прогестерон)",500]
["7.2.7","Андростендион",350]
["7.2.8","Андростендиол глюкуронид",1300]
["7.2.9","ДГЭА-с - Дегидроэпиандростерон сульфат ",420]
["7.2.10","Тестостерон общий ",400]
["7.2.11","Тестостерон свободный",570]
["7.2.12","Дигидротестостерон",1200]
["7.2.13","Белок связывающий половые гормоны (БСПГ, SHBG ) ",430]
["7.2.14","Ингибин В",1100]
["7.2.15","Антимюллеров гормон (АМГ, АМН, MiS)",1100]
["7.2.16","Программный расчет биологически доступного тестостерона (индекса свободных андрогенов, тестостерона свободного, тестостерона общего, ССГ)",640]
["7.2.17","Макропролактин",700]
["7.3 Пренатальная диагностика "]
["7.3.1","Ассоциированный с беременностью протеин А (PAPP-A) ",640]
["7.3.2","Эстриол свободный (Е3) ",350]
["7.3.3","Общий бета-ХГЧ (Пренатальная диагностика)",400]
["7.3.4","Альфа-фетопротеин-АФП (Пренатальная диагностика) ",360]
["7.3.5","Плацентарный лактоген",650]
["7.3.6","ТБГ (трофобластический гликопротеид)",290]
["7.3.7","Программа пренатального скрининга (PRISCA) Пренатальный скрининг  I триместра беременности (10-13 недель) PAPP-A, свободная субъединица бета-ХГЧ ",1280]
["7.3.8","Программа пренатального скрининга (PRISCA) Пренатальный скрининг  II триместра беременности (15-19 недель) АФП, общий бета-ХГЧ, эстриол свободный",1150]
["7.3.10","Прогестерон (Пренатальная диагностика) ",270]
["7.4 Гипофизарно-адреналовая система "]
["7.4.1","Адренокортикотропный гормон (АКТГ)",400]
["7.4.2","Кортизол ",340]
["7.4.3","Катехоламины крови (адреналин, норадреналин, дофамин, серотонин)",2000]
["7.4.4","Катехоламины крови (адреналин, норадреналин, дофамин, серотонин) и их метаболиты в моче (ванилилминдальная кислота, гомованилиновая кислота, 5-гидроксииндолуксусная кислота) *",3250]
["7.5 Маркеры остеопороза "]
["7.5.1","Паратгормон",400]
["7.5.2","Кальцитонин",550]
["7.5.3","Остеокальцин ",750]
["7.5.4","С-концевые телопептиды коллагена I типа ( Beta-Cross laps)",1100]
["7.6 Функция поджелудочной железы "]
["7.6.1","Инсулин ",420]
["7.6.2","С-пептид ",530]
["7.7 Другие "]
["7.7.3","Соматотропный гормон (соматотропный гормон роста, СТГ) (ИХА)",400]
["7.7.4","Эритропоэтин",600]
["7.7.5","Соматомедин С (ИФР-I)",900]
["7.7.6","Лептин",950]
["7.9 Гастропанель "]
["7.9.1","Гастрин",1200]
["7.9.2","Соотношение концентраций пепсиногена I и песиногена II (включая определение пепсиногена I и песиногена II)",1600]
["7.8 Ренин-альдостероновая группа "]
["7.8.1","Ренин",1000]
["7.8.2","Альдостерон",700]
["8.  ОНКОМАРКЕРЫ "]
["8.1","Альфа-фетопротеин-АФП (Онкомаркер) ",360]
["8.2","Раково-эмбриональный антиген (РЭА)",400]
["8.3","Антиген CA 19-9",500]
["8.4","Антиген СА 242",700]
["8.5","Антиген СА 125",450]
["8.6","Онкомаркер НЕ 4 ",900]
["8.7","Общий бета-ХГЧ (Онкомаркер)",350]
["8.8","Прогностическая вероятность (значение ROMA, включает определение онкомаркера HE4, антигена СА 125) (ИХА)",1200]
["8.9","ПСА общий",400]
["8.10","ПСА общий + ПСА свободный (с расчетом отношения)",800]
["8.11","Антиген CA 15-3",570]
["8.12","Бета-2-микроглобулин",750]
["8.13","Антиген СА 72-4",1000]
["8.14","Антиген плоскоклеточной карциномы (SCCA)",1000]
["8.15","Нейрон-специфическая енолаза (NSE )",1000]
["8.16","Фрагмент цитокератина 19 (Cyfra 21-1 )",1200]
["8.17","Белок S-100",2400]
["8.18","Специфический антиген рака мочевого пузыря (UBC)",1500]
["9.1 Антифосфолипидный синдром (АФС) "]
["9.1.1","Антитела класса IgМ к фосфолипидам (кардиолипину, фосфатидилсерину, фосфатидилинозитолу, фосфатидиловой кислоте и бета-2 гликопротеину I)",750]
["9.1.2","Антитела класса IgG к фосфолипидам (кардиолипину, фосфатидилсерину, фосфатидилинозитолу, фосфатидиловой кислоте и бета-2 гликопротеину I)",750]
["9.1.3","Антитела к кардиолипину (суммарные)",1000]
["9.1.4","Антитела к бета-2-гликопротеину- I суммарные",900]
["9.1.5","Антитела к фосфатидилсерину IgG",750]
["9.1.8","Антитела к протромбину суммарные",800]
["9.1.9","Антитела к аннексину IgG",800]
["9.1.10","Антитела к тромбоцитам, IgG",2000]
["9.1.11","Антитела к фосфолипидам суммарные (кардиолипину, фосфатидилсерину, фосфатидилинозитолу, фосфатидиловой кислоте)",750]
["9.2 Аутоиммунные эндокринопатии и аутоиммунное бесплодие "]
["9.2.1","Антитела к инсулину ( IAA )",1000]
["9.2.2","Антитела к глутаматдекарбоксилазе ( GAD )",1375]
["9.2.3","Антитела к островковым клеткам (ICA )",1500]
["9.2.4","Антитела к стероидпродуцирующим клеткам надпочечника (АСПК)",1600]
["9.2.5","Антитела к стероидпродуцирующим клеткам яичника (АСПК-Ovary)",700]
["9.2.6","Антиспермальные антитела (сыворотка)",900]
["9.3 Аутоиммунные поражения печени "]
["9.3.1","Антитела к митохондриям (AMA)",1450]
["9.3.2","Антитела к микросомальной фракции печени и почек (anti - LKM)",1350]
["9.3.3","Антитела к гладким мышцам (ASMA)",1500]
["9.3.4","Диагностика аутоиммунного гепатита (полуколичественный). Иммуноблот. Митохондриальные АТ (АМА-М2), АТ к растворивым АГ печени (SLA/LP), АТ к микросомам печени и почек (LKM-I), АТ к цитозольному АГ печени (LC-I), АТ к гладкой мускулатуре (SMAs):F-актину, десмину, миозину",2000]
["9.4 Аутоиммунные поражения ЖКТ и целиакия "]
["9.4.1","Антитела к глиадину,IgA",650]
["9.4.2","Антитела к глиадину,IgG",650]
["9.4.3","Антитела к тканевой трансглутаминазе, IgA",1000]
["9.4.4","Антитела к тканевой трансглутаминазе, IgG",1000]
["9.4.5","Антитела к эндомизию, IgA ( AЭA )",1025]
["9.4.6","Антиретикулиновые антитела ( APA )",1200]
["9.4.7","Антитела к дрожжам Sacchаromyces cerevisiae ( ASCA ), IgA",1200]
["9.4.8","Антитела к дрожжам Sacchаromyces cerevisiae ( ASCA ), IgG",1200]
["9.4.9","Антитела к париетальным клеткам желудка (АПЖК)",1200]
["9.4.10","Определение антител к ф. Кастла-внутреннему фактору (АВФ)",1000]
["9.4.11","Определение содержания подкласса IgG4",900]
["9.4.12","Диагностика аутоиммунных заболеваний ЖКТ (иммуноблот) -(АТ к внутреннему фактору, париетальным клеткам, тканевой трансглютаминазе, ASCA /антитела к Saccharomyces cerevisiae/ и глиадину)",2500]
["9.5 истемные ревматические заболевания "]
["9.5.1","АТ к двуспиральной (нативная, неденатурированная) ДНК (dsDNA))Jg G",800]
["9.5.2","АТ к односпиральной (денатурированная) ДНК (ssDNA) Jg G",800]
["9.5.3","Антинуклеарный фактор на HEp-2 клетках ( АНФ ) (НИФ)",1100]
["9.5.4","Антинуклеарные АТ (иммуноблот) SSA 60, SSB, RNP, Sm, Центромера В, jo-1, Sсl-70, Рибосомальный белок",2000]
["9.5.6","Антиядерные АТ (сум.) ANA-detect (26 антигенов: SSA-52,SSA-60,SSB,RNP/Sm,RNP-70,RNP-A,RNP-C,Sm-BB,Sm-d,Sm-E,Sm-F,Sm-G,Scl-70,jo-1,dsDNA,ssDNA,полинуклеосомы, мононуклеосомы, гистоновый комплекс, гистоны H1, H2A, H2B, H3 и H4, pm-Scl-100, центро",1200]
["9.5.7","Антиядерные АТ (сум.) ANA-screen (8 антигенов: RNP-70,RNP/Sm, Sm, SS-A, SS-B, Scl-70, центромера, jo-1)",800]
["9.5.8","Антитела к Scl-70",1000]
["9.6 Эли-тесты "]
["9.6.1","ЭЛИ-В-Тест-6 (антитела к ds-ДНК, бета- 2-глико-протеину 1, Fc-Ig, коллагену, интерферону- альфа, интерферону гамма)",2500]
["9.6.2","ЭЛИ-АФС-ХГЧ-Тест-6 (антитела к ХГЧ, бета-2-глико-протеину 1, Fc-Ig, ds-ДНК, коллагену, суммарные к фософлипидам)",2500]
["9.6.3","ЭЛИ-Висперо-Тест-24 ( антитела к 24 антигенам основных органов и систем человека)",10000]
["9.7 Аутоиммунные заболевания легких и сердца "]
["9.7.1","Антитела к десмосомам кожи",2100]
["9.7.2","Антитела к эпидермальной базальной мембране",2100]
["9.7.3","Антитела к миокарду (антимиокардиальные антитела)",1100]
["9.7.4","Диагностика саркоидоза (активность ангиотензин-превращающего фермента - АПФ)",1700]
["9.7.5","Альвеоломуцин в сыворотке крови (фиброзирующего альвеолита)",1000]
["9.8 Аутоиммунные поражения почек и васкулиты "]
["9.8.1","Антитела к базальной мембране клубочка (anti -GMB )",2600]
["9.8.2","Антинейтрофильные цитоплазматические антитела (ANCA-скрининг: PR3, MPO)",1200]
["9.8.3","Антитела к клеткам сосудистого эндотелия ( HUVEC )",1600]
["9.8.4","Антитела к С1q фактору комплемента",2200]
["9.9 Диагностика артритов "]
["9.9.1","Антитела к циклическому цитруллиновому пептиду ( ACCP, anti-CCP )",1300]
["9.9.2","Антикератиновые антитела (АКА)",1200]
["9.9.3","Антитела к цитруллинированному виментину (анти-MCV)",1000]
["9.10 Парапротеинемия и иммунофиксация"]
["9.10.1","Скрининг парапротеинов  в сыворотке (иммунофиксация)",1500]
["9.10.2","Скрининг белка Бенс-Джонса в разовой моче (иммунофиксация)",1290]
["9.10.3","Типирование парапротеина (белок Бенс-Джонса) в сыворотке крови с панелью антисывороток",2800]
["10. ИММУНОЛОГИЧЕСКИЕ ИССЛЕДОВАНИЯ "]
["10.1 Оценка гуморального и клеточного иммунитета "]
["10.1.1","Компонент системы комплемента С3",210]
["10.1.2","Компонент системы комплемента С4",210]
["10.1.3","Иммуноглобулин А (IgA)",190]
["10.1.4","Иммуноглобулин М (IgM)",190]
["10.1.5","Иммуноглобулин G (IgG)",190]
["10.1.7","ЦИК (циркулирующие иммунные комплексы)",190]
["10.1.8","Фактор некроза опухоли (ФНО-альфа)",1200]
["10.1.9","Криоглобулины *",1200]
["10.1.10","Фагоцитарная активность нейтрофилов (оценка гуморального иммунитета)",700]
["10.1.11","Комплексное иммунологическое обследование",3000]
["10.1.12","Оценка клеточного иммунитета",2300]
["10.1.13","Бактерицидная активность крови",2900]
["11. СЕРОЛОГИЧЕСКИЕ МАРКЕРЫ ИНФЕКЦИОННЫХ ЗАБОЛЕВАНИЙ "]
["11.0 Программа \"Госпитализация\" "]
["11.0.1Г","Программа \"Госпитализация\" (HBs Ag, anti-HCV сум., сифилис +РМП, ВИЧ)",1500]
["11.2.1Г","(Госпитализация) Поверхностный антиген вируса гепатита В (HBsAg, австралийский антиген )+подтверждающий тест ",350]
["11.3.1Г","(Госпитализация) Антитела к вирусу гепатита С, суммарные ( Anti-HCV )",350]
["11.6.1Г","(Госпитализация) Микрореакция на сифилис (РМП)",300]
["11.6.4Г","(Госпитализация) Антитела к бледной трепонеме ( Treponema pallidum ), суммарные",300]
["11.7.1Г","(Госпитализация) ВИЧ (антитела и антигены)",350]
["11.1  Гепатит А "]
["11.1.1","Антитела к вирусу гепатита А, IgM ( Anti-HAV IgM )",500]
["11.1.2","Антитела к вирусу гепатита А, IgG ( Anti-HAV IgG )",500]
["11.2 Гепатит В "]
["11.2.1","(Гепатит) Поверхностный антиген вируса гепатита В (HBsAg, австралийский антиген )+подтверждающий тест",300]
["11.2.2","Антитела к поверхностному антигену вируса гепатита В ( Anti-HBs ) (колич.)",350]
["11.2.3","Антитела к ядерному (cor) антигену вируса гепатита В, суммарные (Anti-HBc )",300]
["11.2.4","Антитела к ядерному (cor) антигену вируса гепатита В, IgM ( Anti-HBc IgM )",350]
["11.2.5","Антиген HBе вируса гепатита В ( HBеAg )",350]
["11.2.6","Антитела к HBе-антигену вируса гепатита B IgG ( Anti-HBе )",350]
["11.3 Гепатит С "]
["11.3.1","Антитела к вирусу гепатита С, суммарные ( Anti-HCV ) (гепатит)",350]
["11.3.2","Антитела к cor-антигену вируса гепатита «С» IgM (anti-HCV IgM)",250]
["11.3.3","Антитела к вирусу гепатита C, спектр",400]
["11.4  Гепатит D "]
["11.4.1","Антитела к вирусу гепатита D, суммарные",350]
["11.4.2","Антитела к вирусу гепатита D, IgM",350]
["11.5 Гепатит Е "]
["11.5.1","Антитела к вирусу гепатита E, IgG",450]
["11.5.2","Антитела к вирусу гепатита E, IgМ",450]
["11.6 Сифилис "]
["11.6.1","Микрореакция на сифилис (РМП)",300]
["11.6.2","Реакция пассивной гемагглютинации на сифилис (РПГА) качественно",300]
["11.6.3","Реакция пассивной гемагглютинации на сифилис (РПГА) полуколичественно",300]
["11.6.4","Антитела к бледной трепонеме ( Treponema pallidum ), суммарные",300]
["11.6.5","Антитела к бледной трепонеме (Treponema pallidum ), IgM",300]
["11.7  ВИЧ "]
["11.7.1","ВИЧ (антитела и антигены)",320]
["11.8 Хламидиоз "]
["11.8.1","Антитела к хламидии (Chlamydia trachomatis), IgA",300]
["11.8.2","Антитела к хламидии (Chlamydia trachomatis), IgM",300]
["11.8.3","Антитела к хламидии (Chlamydia trachomatis), IgG",300]
["11.8.4","Антитела к хламидии (Chlamydia trachomatis anti-HSP 60), IgG, белок теплового шока",300]
["11.8.5","Антитела к хламидофиле (Chlamydophila pneumoniae), IgА",400]
["11.8.6","Антитела к хламидофиле (Chlamydophila pneumoniae), IgM",400]
["11.8.7","Антитела к хламидофиле (Chlamydophila pneumoniae), IgG",400]
["11.9 Микоплазмоз "]
["11.9.1","Антитела к микоплазме (Mycoplasma hominis), IgА",300]
["11.9.3","Антитела к микоплазме (Mycoplasma hominis), IgG",300]
["11.9.4","Антитела к микоплазме (Mycoplasma pneumoniae), IgА",450]
["11.9.5","Антитела к микоплазме (Mycoplasma pneumoniae), IgM",400]
["11.9.6","Антитела к микоплазме (Mycoplasma pneumoniae), IgG",400]
["11.10  Уреаплазмоз "]
["11.10.1","Антитела к уреаплазме (Ureaplasma urealyticum), IgА",300]
["11.10.3","Антитела к уреаплазме (Ureaplasma urealyticum), IgG",300]
["11.11 Токсоплазмоз "]
["11.11.1","Антитела к токсоплазме (Toxoplasma gondii), IgА",350]
["11.11.2","Антитела к токсоплазме (Toxoplasma gondii), IgM",350]
["11.11.3","Антитела к токсоплазме (Toxoplasma gondii), IgG",350]
["11.11.4","Авидность IgG к токсоплазме (Toxoplasma gondii) (включает определение антител к токсоплазме, IgG)",400]
["11.12 Краснуха "]
["11.12.1","Антитела к вирусу краснухи, IgM",350]
["11.12.2","Антитела к вирусу краснухи, IgG",350]
["11.12.3","Авидность IgG к вирусу краснухи (включает определение антител к вирусу краснухи, IgG)",400]
["11.13 Цитомегаловирусная инфекция "]
["11.13.1","Антитела к цитомегаловирусу (Cytomegalovirus, CMV), IgА",500]
["11.13.2","Антитела к цитомегаловирусу (Cytomegalovirus, CMV), IgM",350]
["11.13.3","Антитела к цитомегаловирусу (Cytomegalovirus, CMV), IgG, колич.",400]
["11.13.4","Авидность IgG к цитомегаловирусу (Cytomegalovirus, CMV) (включает определение антител к цитомегаловирусу, IgG)",450]
["11.14 Герпетическая инфекция "]
["11.14.1","Антитела к вирусу простого герпеса (Herpes simlex virus, ВПГ) I,II типов, IgM",350]
["11.14.2","Антитела к вирусу простого герпеса (Herpes simlex virus, ВПГ) I,II типов, IgG, полуколич.",400]
["11.14.3","Авидность IgG к вирусу простого герпеса (Herpes simlex virus, ВПГ) I,II типа (включает определение антител к вирусу простого герпеса I,II типов, IgG)",450]
["11.14.6","Антитела к вирусу простого герпеса (Herpes simlex virus, ВПГ) I типа, IgM",400]
["11.14.7","Антитела к вирусу простого герпеса (Herpes simlex virus, ВПГ) I типа, IgG",500]
["11.14.8","Антитела к вирусу простого герпеса (Herpes simlex virus, ВПГ) II типа, IgM",400]
["11.14.9","Антитела к вирусу простого герпеса (Herpes simlex virus, ВПГ) II типа, IgG, полуколич.",400]
["11.14.10","Антитела к вирусу герпеса 6 типа (Human herpes virus, HHV), IgG",500]
["11.15 Вирус Эпштейна-Барр (инфекционный мононуклеоз) "]
["11.15.1","Антитела к вирусу Эпштейна-Барр (Epstein-Barr virus, EBV), IgM, к капсидному антигену",450]
["11.15.2","Антитела к вирусу Эпштейна-Барр (Epstein-Barr virus, EBV), IgG к капсидному антигену",450]
["11.15.3","Антитела к вирусу Эпштейна-Барр (Epstein-Barr virus, EA), IgG к раннему антигену",450]
["11.16  Кандидоз "]
["11.16.1","Антитела к кандиде (Candida albicans), IgA",500]
["11.16.2","Антитела к кандиде (Candida albicans), IgG",300]
["11.16.3","Антитела к кандиде (Candida albicans), IgM",500]
["11.18 Трихомониаз "]
["11.18.1","Антитела к трихомонаде (Trichomonas vaginalis), IgG.",300]
["11.19 Гельминтозы "]
["11.19.1","Антитела к описторхисам (Opisthorchis felineus), IgG, полуколич.",400]
["11.19.2","Антитела к эхинококкам (Echinococcus granulosus), IgG, полуколич.",450]
["11.19.3","Антитела к токсокарам (Toxocara canis), IgG, полуколич.",400]
["11.19.4","Антитела к трихинеллам (Trichinella spiralis), IgG",400]
["11.19.5","Антитела к шистосомам (Schistosoma mansoni), IgG",650]
["11.19.6","Антитела к угрицам кишечным (Strongyloides stercoralis), IgG",750]
["11.19.7","Антитела к цистицеркам свиного цепня (Taenia solium), IgG",700]
["11.19.8","Антитела к печеночным сосальщикам (Fasciola hepatica), IgG",500]
["11.19.9","Антитела к аскаридам (Ascaris lumbricoides), IgG",500]
["11.19.10","Гельминты: описторхисы,  эхинококки, токсар, трихинеллы",500]
["11.20  Лямблиоз "]
["11.20.1","Антитела к лямблиям ( Lamblia intestinalis ), суммарные",400]
["11.20.2","Антитела к лямблиям ( Lamblia intestinalis) , IgM",400]
["11.21 Хеликобактериоз "]
["11.21.1","Антитела к хеликобактеру ( Helicobacter pylori), IgA",550]
["11.21.2","Антитела к хеликобактеру ( Helicobacter pylori), IgМ",480]
["11.21.3","Антитела к хеликобактеру ( Helicobacter pylori), IgG",300]
["11.21.4","Антитела к хеликобактеру ( Helicobacter pylori), суммарные",300]
["11.22 Корь "]
["11.22.1","Антитела к вирусу кори, IgG",1200]
["11.23  Эпидемический паротит "]
["11.23.1","Антитела к вирусу эпидемического паротита, IgМ",660]
["11.23.2","Антитела к вирусу эпидемического паротита, IgG",660]
["11.24 Туберкулез "]
["11.24.1","Антитела к микобактериям туберкулеза (Mycobacterium tuberculosis),суммарные",1000]
["11.25  Боррелиоз "]
["11.25.1","Антитела к боррелиям ( Borrelia burgdorferi) , IgM",400]
["11.25.2","Антитела к боррелиям ( Borrelia burgdorferi ), IgG",400]
["11.26 Легионеллез "]
["11.26.1","Антитела к легионеллам ( Legionella pneumophila), суммарные",750]
["11.27  Парвовирус "]
["11.27.1","Антитела к парвовирусу( Parvovirus) B19, IgG",1200]
["11.27.2","Антитела к парвовирусу (Parvovirus) B19, IgM",1200]
["11.29 Дифтерия и столбняк "]
["11.29.1","Антитела к возбудителю дифтерии (Corynebacterium diphtheriae)",600]
["11.29.2","Антитела к возбудителю столбняка (Clostridium tetani)",600]
["11.30 Лейшманиоз "]
["11.30.1","Антитела к лейшмании (Leishmania infantum), суммарные",640]
["11.32 Псевдотуберкулез и иерсиниоз "]
["11.32.1","Антитела к возбудителям псевдотуберкулеза и иерсиниоза (Yersinia pseudotuberculosis и Yersinia enterocolitica) IgA+ IgG",700]
["11.33  Коклюш и паракоклюш "]
["11.33.1","Антитела к коклюшному токсину IgА",550]
["11.33.2","Антитела к коклюшному токсину IgG",550]
["11.33.3","Антитела к возбудителям коклюша и паракоклюша (Bordetella pertussis, Bordetella parapertussis), суммарные (РПГА) полуколичественно",1100]
["11.34 Менингококковая инфекция "]
["11.34.1","Антитела к менингококку (Neisseria meningitidis)",1300]
["11.35 Шигеллез (дизентерия) "]
["11.35.1","Антитела к шигеллам ( Shigella flexneri 1-V, V1, Shigella sonnei)",800]
["11.36 Сальмонеллез "]
["11.36.1","Антитела к сальмонеллам ( Salmonela)  A, B, C1, C2, D, E",600]
["11.37 Брюшной тиф "]
["11.37.1","Антитела к Vi-aнтигену возбудителя брюшного тифа ( Salmonella typhi)",500]
["11.38 Т-лимфотропные вирусы человека "]
["11.38.1","Антитела к антигенам Т-лимфотропных вирусов ( HTLV) 1 и 2 типов",1700]
["11.39 Бруцеллез "]
["11.39.1","Антитела к бруцелле ( Brucella), IgА",500]
["11.39.2","Антитела к бруцелле ( Brucella ), IgG",500]
["11.40 Клещевой энцефалит "]
["11.40.1","Антитела к вирусу клещевого энцефалита, IgM",600]
["11.40.2","Антитела к вирусу клещевого энцефалита, IgG",600]
["11.41 Амебиаз "]
["11.41.1","Антитела к амебе дизентерийной (Entamoeba histolytica), IgG",700]
["11.42 Пневмоцистоз "]
["11.42.1","Антитела к пневмоцисте (Pneumocystis carinii), IgМ",750]
["11.42.2","Антитела к пневмоцисте (Pneumocуstis carinii), IgG",750]
["11.43 Вирус Коксаки "]
["11.43.1","Антитела к вирусу Коксаки, IgM",750]
["11.44 Хантавирус "]
["11.44.1","Антитела к хантавирусам (возбудитель гемморагической лихорадки), IgM",300]
["11.44.2","Антитела к хантавирусам (возбудитель гемморагической лихорадки), IgG",300]
["11.45 Вирус Варицелла-Зостер "]
["11.45.1","Антитела к вирусу Варицелла-Зостер (Varicella-Zoster) IgM",300]
["11.45.2","Антитела к вирусу Варицелла-Зостер (Varicella-Zoster) IgА",500]
["11.45.3","Антитела к вирусу Варицелла-Зостер (Varicella-Zoster) IgG",300]
["11.46 Аденовирус"]
["11.46.1","Антитела к Аденовирусу (Adenoviridae), IgM",800]
["11.46.2","Антитела к Аденовирусу (Adenoviridae), IgА",800]
["11.46.3","Антитела к Аденовирусу (Adenoviridae), IgG",800]
["11.47  Аспергиллез "]
["11.47.1","Антитела к грибам (Aspergillus fumigatus), IgG",550]
["12.  МОЛЕКУЛЯРНАЯ (ДНК/РНК) ДИАГНОСТИКА МЕТОДОМ ПЦР"]
["12.1 Гепатит А "]
["12.1.1","РНК вируса гепатита А (кровь)",700]
["12.2  Гепатит В "]
["12.2.1","ДНК вируса гепатита B (кровь)",400]
["12.2.2","ДНК вируса гепатита B (кровь), количественно, Real-time",2000]
["12.3 Гепатит С "]
["12.3.1","РНК вируса гепатита C (кровь)",500]
["12.3.2","РНК вируса гепатита C (кровь), количественно, Real-time",2500]
["12.3.3","РНК вируса гепатита C (кровь), генотипирование",950]
["12.3.4","РНК вируса гепатита C (кровь), количественно + генотипирование, Real-time",3000]
["12.4 Гепатит D "]
["12.4.1","РНК вируса гепатита D (кровь)",600]
["12.5  Гепатит G "]
["12.5.1","РНК вируса гепатита G (кровь)",600]
["12.6  Хламидии "]
["12.6.1","ДНК хламидии (Chlamydia trachomatis), (кровь)",320]
["12.6.4","ДНК Хламидии (Chlamydia pneumoniae), (кровь)",320]
["12.7 Микоплазмы"]
["12.7.1","ДНК микоплазмы (Mycoplasma hominis ), (кровь)",320]
["12.7.2","ДНК микоплазмы (Mycoplasma hominis ), (соскоб)",320]
["12.7.3","ДНК микоплазмы (Mycoplasma hominis), количественно, (соскоб, др. виды биоматериала)",320]
["12.7.4","ДНК микоплазмы (Mycoplasma genitalium), (соскоб)",320]
["12.7.5","ДНК микоплазмы (Mycoplasma genitalium), количественно, (соскоб, др. виды биоматериала)",320]
["12.7.6","ДНК Микоплазмы ( Mycoplasma pneumoniae), (кровь)",320]
["12.7.8","ДНК Микоплазмы ( Mycoplasma pneumoniae), (соскоб)",320]
["12.8 Уреаплазмы "]
["12.8.1","ДНК уреаплазмы (Ureaplasma urealyticum Т960+parvum), (соскоб)",320]
["12.8.2","ДНК уреаплазмы (Ureaplasma urealyticum), количественно, (соскоб, др. виды биоматериала)",320]
["12.8.3","ДНК уреаплазмы (Ureaplasma urealyticum Т960), (соскоб)",320]
["12.8.4","ДНК уреаплазмы ( Ureaplasma parvum ), (соскоб)",320]
["12.8.5","ДНК уреаплазмы (Ureaplasma parvum), количественно, (соскоб, др. виды биоматериала)",320]
["12.8.6","ДНК уреаплазмы (Ureaplasma urealyticum Т960+parvum), (кровь)",320]
["12.9 Токсоплазма "]
["12.9.1","ДНК токсоплазмы (Toxoplasma gondii) (кровь)",320]
["12.9.2","ДНК токсоплазмы (Toxoplasma gondii ) (соскоб)",320]
["12.9.3","ДНК токсоплазмы (Toxoplasma gondii), количественно (соскоб, др. виды биоматериала)",400]
["12.10  Гарднереллы "]
["12.10.1","ДНК гарднереллы (Gardnerella vaginalis), (соскоб)",320]
["12.10.2","ДНК гарднереллы (Gardnerella vaginalis), количественно,  (соскоб, др. виды биоматериала)",320]
["12.11 Трихомонады "]
["12.11.1","ДНК трихомонады (Trichomonas vaginalis), (соскоб)",320]
["12.11.2","ДНК трихомонады (Trichomonas vaginalis), количественно, (соскоб, др. виды биоматериала)",320]
["12.12 Гонококки "]
["12.12.1","ДНК гонококка (Neisseria gonorrhoeae), (соскоб)",320]
["12.12.2","ДНК гонококка (Neisseria gonorrhoeae), количественно, (соскоб, др. виды биоматериала)",320]
["12.13 Цитомегаловирус "]
["12.13.1","ДНК цитомегаловируса (Cytomegalovirus, CMV) (кровь)",320]
["12.13.5","ДНК цитомегаловируса (Cytomegalovirus, CMV) (кровь), количественно",550]
["12.13.3","ДНК цитомегаловируса (Cytomegalovirus, CMV) (соскоб)",320]
["12.13.6","ДНК цитомегаловируса (Cytomegalovirus, CMV), (соскоб, др. виды биоматериала), количественно",320]
["12.14 Вирус простого герпеса "]
["12.14.1","ДНК вируса простого герпеса (Herpes simlex virus, ВПГ ) I, II типа (кровь)",320]
["12.14.2","ДНК вируса простого герпеса (Herpes simlex virus, ВПГ) I и II типов, (соскоб)",320]
["12.14.4","ДНК вируса простого герпеса (Herpes simlex virus, ВПГ ) I типа (соскоб, др. виды биоматериала)",320]
["12.14.5","ДНК вируса простого герпеса (Herpes simlex virus, ВПГ ) I типа, количественно, (соскоб, др. виды биоматериала)",320]
["12.14.6","ДНК вируса простого герпеса (Herpes simlex virus, ВПГ) II типа (соскоб, др. виды биоматериала)",320]
["12.14.7","ДНК вируса простого герпеса (Herpes simlex virus, ВПГ) II типа, количественно, (соскоб, др. виды биоматериала)",320]
["12.14.9","ДНК вируса простого герпеса (Herpes simlex virus, ВПГ ) I, II типа, количественно (кровь)",370]
["12.14.10","ДНК вируса простого герпеса (Herpes simlex virus, ВПГ ) I, II типа, количественно (соскоб, др. виды биоматериала)",370]
["12.15 Вирус герпеса VI и VIII "]
["12.15.1","ДНК вируса герпеса VI типа (Human herpes virus, HHV) (кровь)",320]
["12.15.2","ДНК вируса герпеса VI типа (Human herpes virus, HHV), (соскоб, др. виды биоматериала)",320]
["12.15.5","ДНК вируса герпеса VI типа (Human herpes virus, HHV), количественно, (соскоб, др. виды биоматериала)",400]
["12.15.4","ДНК вируса герпеса VIII типа (Human herpes virus, HHV8), качественно, (кровь, сперма, СПЖ, соскобы ротоглотки)",400]
["12.16 Папилломавирус "]
["12.16.1","ДНК папилломавируса (Human Papillomavirus, ВПЧ) 16 типа (соскоб)",320]
["12.16.2","ДНК папилломавируса (Human Papillomavirus, ВПЧ) 18 типа (соскоб)",320]
["12.16.7","ДНК папилломавирусов (Human Papillomavirus, ВПЧ) 6, 11 типов, (соскоб)",320]
["12.16.8","ДНК папилломавирусов (Human Papillomavirus, ВПЧ) Квант 4 (6, 11, 16, 18 типы+КВМ), Мультикомплекс Real-time, количественно, (соскоб)",800]
["12.16.9","ДНК папилломавирусов (Human Papillomavirus, ВПЧ) Квант 15 (6,11,16,18,31,33,35,39,45,51,52,56,58,59,68 типы+КВМ), Мультикомплекс Real-time, количественно (соскоб)",1300]
["12.16.10","ДНК папилломавирусов (Human Papillomavirus, ВПЧ) Квант 21 (6,11,16,18,26,31,33,35,39,44,45,51,52,53,56,58,59,66,68,73,82 типы+КВМ+Суммарная нагрузка HPV), Мультикомплекс Real-time, количественно (соскоб)",1600]
["12.16.11","НОВИНКА!!! ДНК папилломавирусов (Human Papillomavirus, ВПЧ) Генотип (16,18,31,33,35,39,45,51,52,56,58,59 типы) в режиме Real-time, качественно (соскоб)",750]
["12.16.12","ДНК папилломавирусов (Human Papillomavirus, ВПЧ) 6, 11 типов с определением типа, количественно, (соскоб)",350]
["12.16.13","ДНК папилломавирусов (Human Papillomavirus, ВПЧ) 16/18 типов, количественно, (соскоб)",300]
["12.16.14","ДНК папилломавирусов (Human Papillomavirus, ВПЧ) 31/33 типов с определением типа, количественно, (соскоб)",350]
["12.16.15","ДНК папилломавируса (Human Papillomavirus, ВПЧ) 26,51 типов (соскоб)",400]
["12.16.16","ДНК папилломавируса (Human Papillomavirus, ВПЧ) 26,53,66 типов (соскоб)",600]
["12.16.17","ДНК папилломавируса (Human Papillomavirus, ВПЧ) 68,73,82 типов (соскоб)",600]
["12.17  Кандиды "]
["12.17.1","ДНК кандиды (Candida albicans ), (соскоб, др. виды биоматериала)",270]
["12.17.2","ДНК кандиды (Сandida albicans), количественно, (соскоб, др. виды биоматериала)",320]
["12.17.3","ДНК грибов рода кандиды, типирование (Candida albicans/Candida glabrata/Candida krusei/Candida Fungi), (соскоб, др. виды биоматериала)",350]
["МОЛЕКУЛЯРНАЯ (ДНК/РНК) ДИАГНОСТИКА МЕТОДОМ ПЦР(12) / Стрептококки (12.20)"]
["12.20.1","ДНК пиогенного стрептококка ( Streptococcus pyogenes),  (кровь)",320]
["12.20.2","ДНК пиогенного стрептококка (Streptococcus pyogenes) (соскоб, др. виды биоматериала)",320]
["12.20.3","ДНК стрептококков (Streptococcus species) (соскоб, др. виды биоматериала)",460]
["12.20.4","ДНК стрептококков (Streptococcus pneumoniae), (кровь)",320]
["12.20.5","ДНК стрептококков (Streptococcus pneumoniae), (соскоб, др. виды биоматериала)",320]
["12.22 Листерии "]
["12.22.1","ДНК листерии ( Listeria monocytogenes) (кровь)",400]
["12.22.2","ДНК листерии (Listeria monocytogenes) (соскоб, др. виды биоматериала)",550]
["12.23 Микобактерии "]
["12.23.3","ПЦР-диагностика микобактерий туберкулезного комплекса (все виды биоматериала)",550]
["12.24 Вирус Эпштейна-Барр "]
["12.24.1","ДНК вируса Эпштейна- Барр (Epstein-Barr virus, EBV),(кровь)",300]
["12.24.2","ДНК вируса Эпштейна-Барр (Epstein-Barr virus, EBV) (кровь), количественно",450]
["12.24.3","ДНК вируса Эпштейна-Барр (Epstein-Barr virus, EBV) (соскоб, др. виды биоматериала)",300]
["12.24.4","ДНК вируса Эпштейна-Барр (Epstein-Barr virus, EBV), количественно, (соскоб, др. виды биоматериала)",350]
["12.25 Вирус Варицелла-Зостер "]
["12.25.1","ДНК вируса Варицелла-Зостер (Human herpes virus, VZV) (кровь)",300]
["12.25.2","ДНК вируса Варицелла-Зостер (Human herpes virus type 3, VZV), (соскоб, др. виды биоматериала)",300]
["12.26  ВИЧ "]
["12.26.1","РНК ВИЧ (кровь)",2650]
["12.26.2","РНК ВИЧ (кровь), количественно",9500]
["12.27 Энтеровирус "]
["12.27.2","РНК энтеровируса (Enterovirus) (кал)",550]
["12.28 Трепонемы "]
["12.28.1","ДНК бледной трепонемы (Treponema pallidum), (соскоб, др. виды биоматериала)",320]
["12.29  Кишечные инфекции"]
["12.29.1","ДНК сальмонелл ( Salmonella species), (соскоб, др. виды биоматериала)",510]
["12.29.2","ДНК возбудителя псевдотуберкулеза (Yersinia pseudotuberculosis), (соскоб, др. виды биоматериала)",510]
["12.32 Короновирус "]
["12.32.1","РНК вируса перитонита (все виды биоматериала)",600]
["12.30 Легионелла "]
["12.30.1","Легионелла пневмофила (соскоб)",300]
["12.30.2","Легионелла пневмофила (альвеолярный лаваж)",400]
["МОЛЕКУЛЯРНАЯ (ДНК/РНК) ДИАГНОСТИКА МЕТОДОМ ПЦР(12) / Боррелия бургдофери (12.37)"]
["12.37.1","ДНК возбудителя клещевого боррелиоза (Borrelia burgdoferi) и РНК вируса клещевого энцефалита (ликвор, кровь, иксодовые клещи)",600]
["12.43 Краснуха "]
["12.43.1","РНК возбудителя краснухи (Rubella) (кровь)",350]
["12.40  Мобилункус"]
["12.40.1","ДНК Мобилункуса (соскоб)",350]
["12.44 Дифтерия "]
["12.44.1","ДНК возбудителя дифтерии (соскоб)",350]
["12.41 Бактероиды "]
["12.41.1","ДНК Бактероидов (соскоб)",350]
["12.38 Коклюш "]
["12.38.1","ДНК возбудителя коклюша (Бордетелла пертуссис) (соскоб, др. виды биоматериала)",350]
["12.45  Вирус гриппа "]
["12.45.1","ПЦР-диагностика вируса пандемического гриппа А (H1N1), подобного штамму A/California/04/2009 (\"свиной грипп\") методом ОТ-ПЦР в режиме реального времени",1000]
["12.45.2","ОРЗ ВирусКомплекс - выявление возбудителей острых респираторных вирусных инфекций человека методом ОТ-ПЦР в режиме реального времени",600]
["13. БИОЦЕНОЗ ПЦР "]
["13.2","Фемофлор 8 (соскоб)",1100]
["13.3","Фемофлор 16 (соскоб)",1600]
["13.4","Фемофлор СКРИН Мультикомплекс Real-time (соскоб)",1200]
["13.5","Лактонорм. ПЦР-диагностика дисбиоза женского урогенитального тракта (степень чистоты)",500]
["13.6","Андрофлор",1700]
["13.7","Андрофлор СКРИН",1300]
["14. МИКРОБИОЛОГИЧЕСКИЕ ИССЛЕДОВАНИЯ "]
["14.15.1","Микробиологическое исследование на грибы и чувствительность к антимикотикам (моча, мокрота, кал, мазок из зева, мазок из носа, отделяемое глаза, отделяемое половых органов, отделяемое уха, желчь, соскоб, грудное молоко)",700]
["14.15.2","Микробиологическое исследование на микрофлору и чувствительность к антибиотикам (моча)",700]
["14.15.3.1","Микробиологическое исследование на микрофлору и чувствительность к антибиотикам (отделяемое половых органов: эякулят, отделяемое влагалища, отделяемое шейки матки, отделяемое цервикального канала, отделяемое уретры, секрет предстательной железы)",700]
["14.15.3.2","Микробиологическое исследование на микрофлору и чувствительность к антисептикам и бактериофагам (отделяемое половых органов: эякулят, отделяемое влагалища, отделяемое шейки матки, отделяемое цервикального канала, отделяемое уретры, секрет предстательной железы)",600]
["14.15.3.3","Микробиологическое исследование на микрофлору и чувствительность к антибиотикам, антисептикам и бактериофагам (отделяемое половых органов: эякулят, отделяемое влагалища, отделяемое шейки матки, отделяемое цервикального канала, отделяемое уретры, секрет предстательной железы)",900]
["14.15.4.1","Микробиологическое исследование на микрофлору и чувствительность к антибиотикам (другой вид биоматериала: отделяемое глаза, отделяемое раны, грудное молоко, отделяемое уха, экссудат, пунктат, фупункул, корбункул, везикула, аспират, афта, соскоб, биоптат)",700]
["14.15.4.2","Микробиологическое исследование на микрофлору и чувствительность к антисептикам и бактериофагам (другой вид биоматериала: отделяемое глаза, отделяемое раны, грудное молоко, отделяемое уха, экссудат, пунктат, фупункул, корбункул, везикула, аспират, афта, соскоб, биоптат)",600]
["14.15.4.3","Микробиологическое исследование на микрофлору и чувствительность к антибиотикам, антисептикам и бактериофагам (другой вид биоматериала: отделяемое глаза, отделяемое раны, грудное молоко, отделяемое уха, экссудат, пунктат, фупункул, корбункул, везикула, аспират, афта, соскоб, биоптат)",900]
["14.15.28.1","Микробиологическое исследование на микрофлору и чувствительность к антибиотикам (мазок из зева)",700]
["14.15.28.2","Микробиологическое исследование на микрофлору и чувствительность к антисептикам и бактериофагам (мазок из зева)",600]
["14.15.28.3","Микробиологическое исследование на микрофлору и чувствительность к антибиотикам, антисептикам и бактериофагам (мазок из зева)",900]
["14.15.29.1","Микробиологическое исследование на микрофлору и чувствительность к антибиотикам (мазок из носа)",700]
["14.15.29.2","Микробиологическое исследование на микрофлору и чувствительность к антисептикам и бактериофагам (мазок из носа)",600]
["14.15.29.3","Микробиологическое исследование на микрофлору и чувствительность к антибиотикам, антисептикам и бактериофагам (мазок из носа)",900]
["14.15.26","Микробиологическое исследование на микрофлору и чувствительность к антибиотикам (мокрота)",800]
["14.15.27","Микробиологическое исследование на микрофлору и чувствительность к антибиотикам (желчь)",801]
["14.15.5","Микробиологическое исследование на N. gonorrhoeae (гонококк) (отделяемое глаза, отделяемое половых органов, ректум)",600]
["14.15.6","Микробиологическое исследование отделяемого половых органов на трихомонады (отделяемое половых органов, отделяемое влагалища, отделяемое шейки матки, отделяемое цервикального канала, отделяемое уретры, секрет предстательной железы, эякулят)",500]
["14.15.7","Микробиологическое исследование на лактобактерии (отделяемое влагалища, шейки матки, цервикального канала)",600]
["14.15.8","Микробиологическое исследование на U. urealyticum и M. hominis с определением титра и чувствительности к антибиотикам (эякулят, отделяемое влагалища, шейки матки, цервикального канала, уретры, секрет предстательной железы, моча)",1500]
["14.15.9","Микробиологическое исследование на U. urealyticum с определением титра и чувствительности к антибиотикам (эякулят, отделяемое влагалища, шейки матки, цервикального канала, уретры, секрет предстательной железы, моча)",800]
["14.15.10","Микробиологическое исследование на M.hominis  с определением титра и чувствительности к антибиотикам (эякулят, отделяемое влагалища, шейки матки, цервикального канала, уретры, секрет предстательной железы, моча)",800]
["14.15.11","Микробиологическое исследование кала на возбудителей кишечной инфекции (сальмонеллы, шигеллы, ЭПКП) и чувствительность к антибиотикам",550]
["14.15.12","Микробиологическое исследование кала на стафилококк ",400]
["14.15.13","Микробиологическое исследование кала на условно-патогенные бактерии ",650]
["14.15.14","Дисбактериоз кишечника ",860]
["14.15.15","Микробиологическое исследование кала на патогенную кишечную группу (мед. осмотр) ",500]
["14.15.16","Микробиологическое исследование на стрептококк пиогенный и чувствительность к антибиотикам (зев) ",600]
["14.15.17","Микробиологическое исследование на стрептококк пиогенный и чувствительность к антибиотикам (нос) ",600]
["14.15.30","Микробиологическое исследование на стрептококк пиогенный и чувствительность к антибиотикам (очаг) ",601]
["14.15.18","Микробиологическое исследование из зева на стафиллококк (мед. осмотр) ",450]
["14.15.19","Микробиологическое исследование из носа на стафиллококк (мед. осмотр) ",450]
["14.15.20","Дисбактериоз кишечника, контроль лечения",760]
["14.15.23","Микробиологическое исследование кала на патогенную кишечную группу + дизбактериоз кишечника",1100]
["14.15.24","Микробиологическое исследование на анаэробную микрофлору (отделяемое раны, очаг, аспират, биоптат)",900]
["14.15.25","Микробиологическое исследование крови на стерильность (аэробные и анаэробные бактерии, грибы) с определением чувствительности к антибиотикам, антимикотикам",1700]
["15. ЦИТОЛОГИЧЕСКИЕ ИССЛЕДОВАНИЯ"]
["15.1","Онкоцитология гинекологического/урологического мазка",340]
["15.2","Цитологическое исследование мокроты",450]
["15.3","Цитологическое исследование плевральной жидкости",450]
["15.4","Цитологическое исследование перикардиальной жидкости",450]
["15.5","Цитологическое исследование пунктатов, соскобов, выделений молочной железы ",450]
["15.6","Цитологическое исследование пунктатов щитовидной железы",450]
["15.7","Цитологическое исследование пунктатов других органов и тканей",450]
["15.8","Цитологическое исследование эндоскопического материала",450]
["15.9","Цитологическое исследование материала, полученного при хирургических вмешательствах и других срочных исследованиях",450]
["15.10","Цитологическое исследование соскобов поверхности кожи и слизистых",450]
["15.11","Цитологическое исследование соскобов и отпечатков опухолей и опухолевидных образований",450]
["15.13","Жидкостная цитология",1100]
["15.14","Определение белка Р16, жидкостная цитология",2500]
["15.15","Определение белков Р16, Ki67, жидкостная цитология",3000]
["15.16","Цитологическое исследование мочи",450]
["15.17","Цитологическое исследование пунктатов полости матки",450]
["15.18","Цитологическое исследование пунктатов лимфоузлов",450]
["16. ГИСТОЛОГИЧЕСКИЕ ИССЛЕДОВАНИЯ "]
["16.1","Гистология образца",1300]
["17. АЛЛЕРГОЛОГИЯ"]
["17.1 Специфические антитела класса IgE к индивидуальным аллергенам  "]
["Смеси аллергенов"]
["17.1.1","IgE общий",260]
["17.1.2","Ig E Смесь раннецветущих луговых трав gx1 (ежа сборная + овсяница луговая + райграс пастбищный (плевел) +тимофеевка луговая + мятлик луговой)",500]
["17.1.3","Ig E Смесь поздноцветущих луговых трав gx2 (колосок душистый + райграс пастбищный (плевел) + тросник обыкновенный + рожь посевная + бухарник шерстистый)",500]
["17.1.4","Ig E Смесь пыльцы деревьев tx8 (ольха серая + береза белая + лещина обыкновенная (орешник) + дуб белый + ива белая)",500]
["17.1.5","Ig E Смесь пыльцы деревьев tx9 (ольха серая + береза белая + лещина обыкновенная (орешник) + бук лесной + дуб белый + вяз + платан западный + ива белая)",500]
["17.1.6","Ig E Смесь пыльцы деревьев tx16 ( дуб белый + вяз + платан западный + ива белая + тополь)",500]
["17.1.7","Ig E Смесь сорных трав wx1 (амброзия полыннолистная + полынь обыкновенная (чернобыльник) + нивяник обыкновенный (ромашка) + одуванчик лекарственный + золотарник (золотая розга)",500]
["17.1.8","Ig E Смесь цветов wx5 (тюльпан + герань + примула (первоцвет) + гиацинт)",500]
["17.1.9","Ig E Смесь сорных трав wx9 (амброзия трехраздельная + полынь обыкновенная (чернобыльник) + подорожник ланцетолистный + марь белая + лебеда + крапива двудомная)",500]
["17.1.10","Ig E Смесь аллергенов, связанных с профессиональной деятельностью bx5 (пыль (пыльца) от молотьбы + сено (сенная пыль) + соломенная пыль + пыль от молотьбы пшеницы",500]
["17.1.11","Ig E Смесь бытовых аллергенов hx2 (dermatophagoides pteronyssinus + dermatophagoides farinae + кошка (эпителий) + собака (эпителий)",500]
["17.1.12","Ig E Смесь клещей домашней пыли dx1 (dermatophagoides pteronyssinus + dermatophagoides farinae)",500]
["17.1.13","Ig E Смесь клещей домашней пыли dx4 (dermatophagoides pteronyssinus + dermatophagoides farinae + euroglyphus maynei + dermatophagoides microceras + acarus siro + lepidoglyphus destructor + turophagus putreus + glycyphagus domesticus)",500]
["17.1.14","Ig E Смесь эпидермальных аллергенов ex3 (эпителий лошади + эпителий коровы + эпителий овцы + шерсть кролика)",500]
["17.1.15","Ig E Смесь перьевых аллергенов ex4 (гусиные перья + куриные перья + утиные перья)",500]
["17.1.16","Ig E Смесь эпидермальных аллергенов грызунов ex5 (шерсть морской свинки + эпителий мыши + эпителий крысы + шерсть кролика + шерсть золотистого хомячка)",500]
["17.1.18","Ig E Смесь плесневых грибков mx2 (rhizopus nigricans + aureobasidium pullulans + mucor spinosus + neurospora sitophila)",500]
["17.1.19","Ig E Смесь плесневых грибков mx12 (penicillium chrysogenum (notatum) + cladosporium herbarum + aspergillus fumigatus + candida albicans + alternaria tenuis (alternata)",500]
["17.1.20","Ig E Смесь мучная fx2 (пшеничная мука + ржаная мука + овсяная мука + глютен - глиадин (клейковина)",500]
["17.1.21","Ig E Смесь морепродуктов fx3 (треска + креветка +мидия + тунец + лосось)",500]
["17.1.22","Ig E Смесь аллергенов детского питания fx4 (яичный белок + молоко коровье + пшеничная мука + арахис +соевые бобы)",500]
["Клещевые аллергены"]
["17.1.23","Ig E Dermatophagoides pteronyssinus d1",500]
["17.1.24","Ig E Dermatophagoides farinae d2",500]
[" Пыльца деревьев и кустарников"]
["17.1.25","Ig E Ольха серая (Alnus incana) t2",500]
["17.1.26","Ig E Береза белая (Betula alba) t3",500]
["17.1.27","Ig E Лещина обыкновенная (орешник) (Corylus avellana) ",500]
["17.1.28","Ig E Дуб белый (Quercus alba) ",500]
["17.1.29","Ig E Ива (Salix nigra) ",500]
["17.1.30","Ig E Тополь (Populus spp.) ",500]
["17.1.31","Ig E Сосна белая (Pinus silvestris) ",500]
["17.1.32","Ig E Эвкалипт (Eucalyptus globulus) ",500]
["17.1.36","Ig E Акация (Acacia species)",500]
["17.1.38","Ig E Бук (Fagus grandifolia)",500]
["17.1.39","Ig E Вяз (Ulmus spp)",500]
["17.1.40","Ig E Граб (Carpinus betulus)",500]
["17.1.42","Ig E Клен ясенелистный (Acer negundo)",500]
["17.1.44","Ig E Орех грецкий (Juglans regia)",500]
["17.1.47","Ig E Платан (Platanus acerifolia)",500]
["17.1.50","Ig E Ясень (Fraxinus excelsior)",500]
["17.1.315","Ig E Дуб смешанный (Querans rubra, alba,valentina)",500]
["Сорные травы и цветы"]
["17.1.51","Ig E Амброзия обыкновенная (Ambrosia elatior) ",500]
["17.1.52","Ig E Полынь горькая (Artemisia absinthum)",500]
["17.1.53","Ig E Полынь обыкновенная (чернобыльник) (Artemisia vulgaris) w6",500]
["17.1.54","Ig E Одуванчик лекарственный (Taraxacum officinale) w8",500]
["17.1.55","Ig E Подорожник ланцетолистный (Plantago lanceolata)",500]
["17.1.56","Ig E Марь белая (Chenopodium album) ",500]
["17.1.57","Ig E Лебеда (Artriplex canascens)",500]
["17.1.60","Ig E Крапива двудомная (Urtica dioica) ",500]
["17.1.61","Ig E Ромашка (нивяник)(Chrysanthebum leucanthenum)",500]
["17.1.316","Ig E Амброзия смешанная (Heterocera spp.)",500]
["17.1.317","Ig E Бухарник шерстистый (Holcus lanatus)",500]
["17.1.318","Ig E Лебеда чечевицеобразная (Atriplex lentiformis)",500]
["17.1.319","Ig E Костер (кострец) безостый (Bromus inermis)",500]
["17.1.320","Ig E Лисохвост луговой  (Alopecurus pratensis)",500]
["17.1.321","Ig E Полевица (Agrostis alba)",500]
["17.1.322","Ig E Постенница лекарственная (Parietaria officinalis)",500]
["17.1.323","Ig E Рожь многолетняя (Lolium perenne)",500]
["17.1.324","Ig E Рыльца кукурузные (Zee mays)",500]
["17.1.325","Ig E Фикус",500]
["Луговые травы и злаки"]
["17.1.65","Ig E Колосок душистый обыкновенный (Anthoxanthum odoratum)",500]
["17.1.66","Ig E Ежа сборная (ежа обыкновенная) (Dactylis glomerata)",500]
["17.1.67","Ig E Овсяница луговая (Festuca pratensis)",500]
["17.1.69","Ig E Тимофеевка луговая (Phleum pratense) ",500]
["17.1.70","Ig E Мятлик луговой (Poa pratensis) ",500]
["17.1.71","Ig E Рожь культивированная (Secale cereale)",500]
["17.1.72","Ig E Овес культивированный (Avena sativa) ",500]
["17.1.73","Ig E Пшеница (Triticum sativum)",500]
["Пищевые аллергены"]
["17.1.76","Ig E Яичный белок f1",500]
["17.1.77","Ig E Яичный желток f75",500]
["17.1.78","Ig E Яйцо куриное f252",500]
["17.1.79","Ig E Коровье молоко f2",500]
["17.1.80","Ig E Альфа-лактальбумин f76",500]
["17.1.81","Ig E Бета-лактоглобулин f77",500]
["17.1.82","Ig E Казеин f78",500]
["17.1.83","Ig E Козье молоко f219",500]
["17.1.84","Ig E Молоко кипяченое",500]
["17.1.85","Ig E Сыворотка молочная",500]
["17.1.86","Ig E Сыр типа \"Чеддер\"",500]
["17.1.87","Ig E Сыр типа \"Моулд\"",500]
["17.1.88","Ig E Свинина f26",500]
["17.1.89","Ig E Говядина f27",500]
["17.1.91","Ig E Мясо курицы f83",500]
["17.1.94","Ig E Баранина",500]
["17.1.95","Ig E Мясо индейки",500]
["17.1.96","Ig E Треска f3",500]
["17.1.97","Ig E Сельдь f21",500]
["17.1.98","Ig E Скумбрия f174",500]
["17.1.100","Ig E Судак f247",500]
["17.1.101","Ig E Хек f354",500]
["17.1.102","Ig E Камбала",500]
["17.1.103","Ig E Лосось",500]
["17.1.104","Ig E Сардина",500]
["17.1.105","Ig E Тунец",500]
["17.1.106","Ig E Форель",500]
["17.1.107","Ig E Краб",500]
["17.1.108","Ig E Креветки",500]
["17.1.109","Ig E Лобстер (омар)",500]
["17.1.110","Ig E Мидия",500]
["17.1.111","Ig E Гребешок",500]
["17.1.113","Ig E Устрицы",500]
["17.1.115","Ig E Рис f9",500]
["17.1.116","Ig E Пшено (просо) f140",500]
["17.1.117","Ig E Рожь (зерно) f254",500]
["17.1.118","Ig E Пшеница (зерно) f255",500]
["17.1.119","Ig E Чечевица",500]
["17.1.120","Ig E Гречневая мука",500]
["17.1.121","Ig E Кукурузная мука",500]
["17.1.122","Ig E Овсяная мука",500]
["17.1.123","Ig E Пшеничная мука f4",500]
["17.1.124","Ig E Ржаная мука",500]
["17.1.125","Ig E Ячменная мука",500]
["17.1.126","Ig E Картофель f35",500]
["17.1.127","Ig E Свекла обыкновенная f224",500]
["17.1.128","Ig E Сельдерей",500]
["17.1.129","Ig E Петрушка",500]
["17.1.130","Ig E Горчица",500]
["17.1.131","Ig E Апельсин f33",500]
["17.1.132","Ig E Дрожжи пивные ",500]
["17.1.133","Ig E Дрожжи пекарские f45",500]
["17.1.134","Ig E Овальбумин",500]
["17.1.135","Ig E Овомукоид",500]
["17.1.136","Ig E Грибы",500]
["17.1.138","Ig E Кунжут",500]
["17.1.139","Ig E Бобы соевые",500]
["17.1.140","Ig E Горошек зеленый",500]
["17.1.141","Ig E Нут (турецкий горох)",500]
["17.1.142","Ig E Фасоль белая",500]
["17.1.143","Ig E Фасоль зеленая",500]
["17.1.144","Ig E Фасоль красная",500]
["17.1.146","Ig E Кофе",500]
["17.1.147","Ig E Какао",500]
["17.1.148","Ig E Шоколад f52",500]
["17.1.149","Ig E Арахис",500]
["17.1.152","Ig E Миндаль ",500]
["17.1.153","Ig E Кешью",500]
["17.1.154","Ig E Банан f 29",500]
["17.1.155","Ig E Яблоко f49",500]
["17.1.255","Ig E Глютен-глиадин (клейковина) f79",500]
["17.1.257","Ig E Баклажан",500]
["17.1.258","Ig E Капуста брокколи",500]
["17.1.259","Ig E Капуста брюссельская",500]
["17.1.260","Ig E Капуста кочанная",500]
["17.1.261","Ig E Капуста цветная",500]
["17.1.262","Ig E Морковь",500]
["17.1.263","Ig E Тыква",500]
["17.1.264","Ig E Томат",500]
["17.1.265","Ig E Огурец",500]
["17.1.266","Ig E Спаржа",500]
["17.1.268","Ig E Шпинат",500]
["17.1.269","Ig E Чеснок",500]
["17.1.270","Ig E Лук",500]
["17.1.272","Ig E Ваниль",500]
["17.1.274","Ig E Лавровый лист",500]
["17.1.276","Ig E Мята",500]
["17.1.277","Ig E Перец красный (паприка)",500]
["17.1.278","Ig E Перец зеленый",500]
["17.1.279","Ig E Перец черный",500]
["17.1.284","Ig E Карри",500]
["17.1.285","Ig E Абрикос",500]
["17.1.286","Ig E Авокадо",500]
["17.1.287","Ig E Ананас",500]
["17.1.288","Ig E Виноград",500]
["17.1.289","Ig E Вишня",500]
["17.1.290","Ig E Грейпфрут",500]
["17.1.291","Ig E Груша",500]
["17.1.292","Ig E Дыня",500]
["17.1.293","Ig E Инжир",500]
["17.1.294","Ig E Киви",500]
["17.1.295","Ig E Клубника",500]
["17.1.296","Ig E Лимон",500]
["17.1.297","Ig E Манго",500]
["17.1.300","Ig E Персик",500]
["17.1.301","Ig E Слива",500]
["17.1.302","Ig E Финики",500]
["17.1.303","Ig E Хурма",500]
["17.1.304","Ig E Ягоды рода брусничные (черника, голубика, брусника)",500]
["17.1.306","Ig E Фисташки",500]
["17.1.307","Ig E Фундук",500]
["17.1.308","Ig E Солод",500]
["17.1.309","Ig E Имбирь",500]
["17.1.311","Ig E Кокос",500]
["17.1.312","Ig E Масло подсолнечное",500]
["Эпидермальные аллергены"]
["17.1.156","Ig E Лощадь (перхоть)",500]
["17.1.157","Ig E Корова (перхоть)",500]
["17.1.158","Ig E Эпителий собаки e5",500]
["17.1.159","Ig E Шерсть морской свинки e6",500]
["17.1.160","Ig E Перья канарейки ",500]
["17.1.161","Ig E Перья попугая e10",500]
["17.1.163","Ig E Перья волнистого попугайчика e78",500]
["17.1.164","Ig E Шерсть кролика e82",500]
["17.1.165","Ig E Шерсть золотистого хомячка e84",500]
["17.1.166","Ig E Эпителий крысы",500]
["17.1.167","Ig E Помет голубя",500]
["17.1.168","Ig E Перо гуся",500]
["17.1.169","Ig E Перо утки",500]
["17.1.170","Ig E Перо индюка",500]
["17.1.171","Ig E Эпителий козы",500]
["17.1.172","Ig E Перо курицы",500]
["17.1.173","Ig E Эпителий мыши",500]
["17.1.174","Ig E Моча мыши",500]
["17.1.175","Ig E Эпителий овцы",500]
["17.1.176","Ig E Эпителий свиньи",500]
["17.1.313","Ig E Эпителий кошки e1",500]
["17.1.314","Ig E Шерсть собаки e2",500]
[" Грибковые аллергены"]
["17.1.178","Ig E Аспергилл фумигатус, плесневый гриб (Aspergillus fumigatus) m3",500]
["17.1.180","Ig E Кандида альбиканс, дрожжеподобный гриб (Candida albicans)",500]
["17.1.181","Ig E Альтернария тонкая, плесневый гриб (Alternaria tenuis (alternata) m6",500]
["17.1.183","Ig E Аспергилл черный, черная плесень (Aspergillus niger) m33",500]
["17.1.326","Ig E Плесневый гриб (Aspergillusfumigatus)",500]
["17.1.327","Ig E Плесневый гриб (Chaetomium globosum)",500]
["Яды насекомых"]
["17.1.185","Ig E Яд пчелы медоносной (Alis mellifera) i1",500]
["17.1.187","Ig E Слепень (Tabanidae)",500]
["17.1.189","Ig E Рыжий таракан (прусак) (Blatella germanica) i6",500]
["17.1.191","Ig E Яд осиный (Polistes) ",500]
["17.1.192","Ig E Яд осы пятнистой (Dolichovespula maculata) i13",500]
["17.1.328","Ig E Яд осиный (род Vespula) ",500]
["17.1.329","Ig E Моль (сем. Tineidae) ",500]
["17.1.330","Ig E Муравей рыжий (Solenopsis invicta) ",500]
["17.1.331","Ig E Таракан рыжий (Blatella germanica) ",500]
["17.1.194.1","IgE Комар (сем. Culicidae)",500]
["Профессиональные аллергены"]
["17.1.195","Ig E Латекс (каучук) k82",500]
["Аллергены домашней пыли"]
["17.1.198","Ig E Домашняя пыль h1",500]
["Аллергены ткани"]
["17.1.199","Ig E Хлопок",500]
["17.1.200","Ig E Шерсть",500]
["17.1.201","Ig E Шелк",500]
["Лекарственные аллергены"]
["17.1.209","Ig E Артикаин/Ультракаин с68",500]
["17.1.210","Ig E Лидокаин/Ксилокаин с82",500]
["17.1.211","Ig E Прокаин/Новокаин с83",500]
["17.1.219","Ig E Пенициллин G с1",500]
["17.1.220","Ig E Цефалоспорин с55",500]
["17.1.221","Ig E Амоксициллин с56",500]
["17.1.238","Ig E Азитромицин с194",500]
["17.2 Определение специфических IgG"]
[" Диагностика пищевой непереносимости"]
["17.2.1.1","Ig G Панель №1 суммарная (молоко коровье, белок куриного яйца, желток куриного яйца, яйцо цельное, свинина, говядина, курица, треска, пшеница, рис, кукуруза)",2000]
["17.2.1.2","Ig G Панель №2 суммарная (пшено, гречка, овсянка, лимон, апельсин, мандарин, виноград, томаты, кофе, какао, картофель)",2000]
["17.2.1.3","Ig G Панель №3  суммарная (черная смородина, арахис, баранина, гусь, утка, хек, мед, соя, бобы, бананы, колбаса копченая)",2000]
["17.2.1.1.1","Ig G Молоко коровье 1.1 (Панель №1)",500]
["17.2.1.1.2","Ig G Белок куриного яйца 1.2 (Панель №1)",500]
["17.2.1.1.3","Ig G Желток куриного яйца 1.3 (Панель №1)",500]
["17.2.1.1.4","Ig G Яйцо цельное 1.4 (Панель №1)",500]
["17.2.1.1.5","Ig G Свинина 1.5 (Панель №1)",500]
["17.2.1.1.6","Ig G Говядина 1.6 (Панель №1)",500]
["17.2.1.1.7","Ig G Курица 1.7 (Панель №1)",500]
["17.2.1.1.8","Ig G Треска 1.8 (Панель №1)",500]
["17.2.1.1.9","Ig G Пшеница 1.9 (Панель №1)",500]
["17.2.1.2.1","Ig G Пшено 2.1 (Панель №2)",500]
["17.2.1.2.2","Ig G Гречка 2.2 (Панель №2)",500]
["17.2.1.2.3","Ig G Овсянка 2.3 (Панель №2)",500]
["17.2.1.2.4","Ig G Лимон 2.4 (Панель №2)",500]
["17.2.1.2.5","Ig G Апельсин 2.5 (Панель №2)",500]
["17.2.1.2.6","Ig G Мандарин 2.6 (Панель №2)",500]
["17.2.1.2.7","Ig G Виноград 2.7 (Панель №2)",500]
["17.2.1.2.8","Ig G Томаты 2.8 (Панель №2)",500]
["17.2.1.2.9","Ig G Кофе 2.9 (Панель №2)",500]
["17.2.1.3.1","Ig G Черная смородина 3.1 (Панель №3)",500]
["17.2.1.3.2","Ig G Арахис 3.2 (Панель №3)",500]
["17.2.1.3.3","Ig G Баранина 3.3 (Панель №3)",500]
["17.2.1.3.4","Ig G Гусь 3.4 (Панель №3)",500]
["17.2.1.3.5","Ig G Утка 3.5 (Панель №3)",500]
["17.2.1.3.6","Ig G Хек 3.6 (Панель №3)",500]
["17.2.1.3.7","Ig G Мед 3.7 (Панель №3)",500]
["17.2.1.3.8","Ig G Соя 3.8 (Панель №3)",500]
["17.2.1.3.9","Ig G Бобы 3.9 (Панель №3)",500]
["17.2.1.1.10","Ig G Рис 1.10 (Панель №1)",500]
["17.2.1.1.11","Ig G Кукуруза 1.11 (Панель №1)",500]
["17.2.1.2.10","Ig G Какао 2.10 (Панель №2)",500]
["17.2.1.2.11","Ig G Картофель 2.11 (Панель №2)",500]
["17.2.1.3.10","Ig G Бананы 3.10 (Панель №3)",500]
["17.2.1.3.11","Ig G Колбаса копченая 3.11 (Панель №3)",500]
[" Грибковые аллергены"]
["17.2.2.4","Ig G Грибковая панель №4 суммарная (Alternaria tenuis, Aspergilus niger, Aspergilus flavus, Cladosporium herbar, Penicillum tardum, Penicillum expancum, Rhizopus nigricans, Candida albicans, Candida kruzel, Fusarium oxyspora, Mucor posillus)",2000]
["17.2.2.4.1","Ig G Alternaria tenuis 4.1 (Панель №4)",500]
["17.2.2.4.2","Ig G Aspergilus niger 4.2 (Панель №4)",500]
["17.2.2.4.3","Ig G Aspergilus flavus 4.3 (Панель №4)",500]
["17.2.2.4.4","Ig G Cladosporium herbar 4.4 (Панель №4)",500]
["17.2.2.4.5","Ig G Penicillum tardum 4.5 (Панель №4)",500]
["17.2.2.4.6","Ig G Penicillum expancum 4.6 (Панель №4)",500]
["17.2.2.4.7","Ig G Rhizopus nigricans 4.7 (Панель №4)",500]
["17.2.2.4.8","Ig G Candida albicans 4.8 (Панель №4)",500]
["17.2.2.4.9","Ig G Candida kruzel 4.9 (Панель №4)",500]
["17.2.2.4.10","Ig G Fusarium oxyspora 4.10 (Панель №4)",500]
["17.2.2.4.11","Ig G Mucor posillus 4.11 (Панель №4)",500]
["Бытовые аллергены"]
["17.2.3.5","Ig G Бытовая панель №5 суммарная (домашняя пыль, библиотечная пыль, перо подушки, шерсть собаки, шерсть кошки, шерсть овцы, D.pteronissimus, D.farinae, дафния, таракан, табак)",2000]
["17.2.3.5.1","Ig G Домашняя пыль 5.1 (Панель №5)",500]
["17.2.3.5.2","Ig G Библиотечная пыль 5.2 (Панель №5)",500]
["17.2.3.5.3","Ig G Перо подушки 5.3 (Панель №5)",500]
["17.2.3.5.4","Ig G Шерсть собаки 5.4 (Панель №5)",500]
["17.2.3.5.5","Ig G Шерсть кошки 5.5 (Панель №5)",500]
["17.2.3.5.6","Ig G Шерсть овцы 5.6 (Панель №5)",500]
["17.2.3.5.7","Ig G D.pteronissimus 5.7 (Панель №5)",500]
["17.2.3.5.8","Ig G D.farinae 5.8 (Панель №5)",500]
["17.2.3.5.9","Ig G Дафния 5.9 (Панель №5)",500]
["17.2.3.5.10","Ig G Таракан 5.10 (Панель №5)",500]
["17.2.3.5.11","Ig G Табак 5.11 (Панель №5)",500]
["Бактериальная панель"]
["17.2.4.6","Ig G Бактериальная панель №6 суммарная (Str.pyogenes, Str.pneumonia, Str.mutans, S.aureus, S.epidermidis, E.coli, P.aeruginosa, Proteus vulgaris, Kl.pneumoniae, Br.catharrhallis, H.influenzae)",2000]
["17.2.4.6.1","Ig G Str.pyogenes 6.1 (Панель №6)",500]
["17.2.4.6.2","Ig G Str.pneumonia 6.2 (Панель №6)",500]
["17.2.4.6.3","Ig G Str.mutans 6.3 (Панель №6)",500]
["17.2.4.6.4","Ig G S.aureus 6.4 (Панель №6)",500]
["17.2.4.6.5","Ig G S.epidermidis 6.5 (Панель №6)",500]
["17.2.4.6.6","Ig G E.coli 6.6 (Панель №6)",500]
["17.2.4.6.7","Ig G .aeruginosa 6.7 (Панель №6)",500]
["17.2.4.6.8","Ig G Proteus vulgaris 6.8 (Панель №6)",500]
["17.2.4.6.9","Ig G Kl.pneumoniae 6.9 (Панель №6)",500]
["17.2.4.6.10","Ig G Br.catharrhallis 6.10 (Панель №6)",500]
["17.2.4.6.11","Ig G H.influenzae 6.11 (Панель №6)",500]
["17.3 Пищевая непереносимость"]
["17.3.2","Пищевая непереносимость - 116 определений",15000]
["18 ПЦР-ДИАГНОСТИКА ИНФЕКЦИЙ МОЧЕПОЛОВОЙ СИСТЕМЫ "]
["18.1","СЕПТОСКРИН - диагностика инфекций мочеполовой системы. Пакетный скрининг в режиме Real-time (соскоб)",1000]
["18.2","СЕПТОСКРИН - диагностика инфекций мочеполовой системы. Пакетный скрининг в режиме Real-time (моча)",1000]
["18.3","СЕПТОСКРИН - диагностика инфекций мочеполовой системы. Пакетный скрининг в режиме Real-time (спж)",1000]
["18.4","СЕПТОСКРИН - диагностика инфекций мочеполовой системы. Пакетный скрининг в режиме Real-time (сперма)",1000]
["22. ГЕНЕТИЧЕСКИЕ ИССЛЕДОВАНИЯ "]
["22.1 Генетическая предрасположенность к различным заболеваниям "]
["22.1.1","Кардиогенетика. Гипертония",2600]
["22.1.4","Иммуногенетика. Интерлейкин В28",700]
["22.1.5","Антиген системы гистосовместимости HLA В27 (Диагностика аутоиммунных состояний, болезнь Бехтерева)",700]
["22.1.6","Генетический тест на лактозную непереносимость",1750]
["22.1.7","Онкогенетика BRCA (определение генетических полиморфизмов, ассоциированных с риском развития рака молочной железы и рака яичников)",3200]
["22.1.9","Генетическая предрасположенность к остеопорозу ",4000]
["22.1.12","Диагностика синдрома Жильбера (мутация гена UGT1)",3600]
["22.1.14","Генетические факторы развития синдрома поликистозных яичников (INC, PPAR-y,CYP11a, 5a-редуктаза,  SHB, AR1-6 показателей)",2990]
["22.1.16","Делеции локуса AZF",2500]
["22.1.17","Ген Янус-киназы 2 (JAK2),выявление JAK2 V617F мутации в гене, качественно",2500]
["22.1.18","Генетика - ГЕМОСТАЗ - 12 (Кардиориск-Тромбофилия+Метаболизм фолатов)",3200]
["22.2 Фармакогенетика "]
["22.2.1","Фармакогенетика. Варфарин (3 гена, 4 мутации)",1200]
["22.2.2"," Фармакогенетика. Клопидогрел",900]
["22.3 HLA-типирование"]
["22.3.1","Антигены системы гистосовместимости HLA II класс (локусы DRB1, DQA1, DQB1)",3700]
["22.3.2","Антигены системы гистосовместимости HLA II класс: локус DRB1",1400]
["22.3.3","Антигены системы гистосовместимости HLA II класс: локус DQA1",1400]
["22.3.4","Антигены системы гистосовместимости HLA II класс: локус DQB1",1400]
["22.5 Генные мутации "]
["22.5.1","Фактор 2 (20210 G A) (1 мутация)",500]
["22.5.2","Фактор 5 Лейдена F5 (1691G A) (1 мутация)",500]
["22.5.3","Фактор 7 (10976G A) (1 мутация)",500]
["22.7  Кариотипирование"]
["22.7.1","Кариотипирование",6600]
["23. Прием специалистов"]
["23.1","Прием врача гинеколога, кмн, доцент ",1100]
["23.2","Первичный прием врача гинеколога высшей категории",850]
["23.3","Прием врача эндокринолога высшей категории",850]
["23.4","Прием врача терапевта  гастроэнтерология/ высшей категории",850]
["23.5","Повторный прием врача высшей категории (один) в течении 1 недели",600]
["23.6","Повторный прием врача гинеколога, кмн, доцент (один) в течении 1 недели",900]
["23.7","Повторный прием врача гинеколога высшей категории (один) в течении 1 недели",500]
["23.8","Прием врача уролога-андролога по вопросам репродукции, кмн, доцент",1100]
["23.9","Повторный прием врача уролога-андролога по вопросам репродукции, кмн, доцент",900]
["23.10","Прием врача уролога, кмн, доцент",900]
["23.11","Повторный прием врача уролога, кмн, доцент",700]
["24. Гинекология"]
["Консультативные услуги и диагностические исследования:"]
["24.1","Цифровая видеокольпоскопия",900]
["24.2","Введение внутриматочного контрацептива (процедура)",2000]
["24.3","Удаление внутриматочного контрацептива (процедура)",800]
["24.4","Подбор размера влагалищного пессария ",170]
["24.5","Введение подкожного импланта (Импланон)",1000]
["24.6","Удаление подкожного импланта",2000]
["24.7","Забор биологического материала (мазка)",100]
["24.8","Забор материала (аспирата) из полости матки для гистологического исследования",500]
["24.9","Мазок на степень чистоты",250]
["24.10","Онкоцитология ",350]
["24.11","Жидкостная онкоцитология ",1300]
["24.12","Жидкостная онкоцитология с определением онкомаркера p16ink",2700]
["24.13","Гистологическое исследования биоптата",1200]
["24.14","Иммуногистохимическое исследование аспирата из полости матки для выявления причин",4000]
["Гинекологическая косметология и омолаживание наружных половых органов:"]
["24.15","Биоревитализация наружных половых органов (включая лекарственный препарат)",14000]
["24.16","Интимная контурная пластика (включая лекарственный препарат)",16000]
["Лечебные процедуры"]
["24.17","Влагалищная ванночка ",270]
["24.18","Введение лекарственного препарата в цервикальный канал",150]
["24.19","Введение лекарственного препарата в полость матки",300]
["Радиоволновое лечение:"]
["24.20","Удаление аногенитальных бородавок и остроконечных кондилом радиоволновым методом за 1 см2",600]
["24.21","Лечение эрозии шейки матки ",3500]
["24.22","Биопсия шейки матки, влагалища, вульвы",1000]
["25. Урология"]
["25.1","Массаж предстательной железы",500]
["25.2","Забор биологического материала (мазка)",200]
["25.3","Секрет предстательной железы (включая стоимость массажа предстательной железы)",800]
["25.4","Удаление аногенитальных бородавок и остроконечных кондилом радиоволновым методом за 1 шт",600]
["25.5","Удаление аногенитальных бородавок и остроконечных кондилом полового члена радиоволновым методом ","от 2 500,00"]
["26.  Дополнительные услуги"]
["26.1","Забор:  крови  / слюны /  мазка гинекологического /  мазка урологического",100]
["26.2","Измерение артериального давления",50]
["26.3","Выезд на дом к пациенту (без стоимости услуг)",1000]
["26.4","Инъекция в/м, подкожная (без стоимости преперата)",150]
["26.5","Инъекция в/в (без стоимости преперата)",200]
["26.6","Капельница в/в (без стоимости преперата)",550]

{"sheet":"Sheet1","index":2,"n_rows":99,"n_cols":3,"rows_kept":99,"cut":false,"hidden":false,"merged":[]}
["Название товара или услуги*","Поиск через ВПР","F"]
["Эозинофилия слизистой носа",{"$f":"VLOOKUP(A2,Лист1!$B$3:$B$2000,1,0)","v":{"$error":"#N/A"}},{"$f":"f(A2,Лист1!$B$3:$B$1998,10)","v":""}]
["Экстракраниальная допплерография (ЭКДС или ЭКТГ)",{"$f":"VLOOKUP(A3,Лист1!$B$3:$B$2000,1,0)","v":{"$error":"#N/A"}},{"$f":"f(A3,Лист1!$B$3:$B$1998,10)","v":""}]
["Цитологическое исследование эндоскопического материала",{"$f":"VLOOKUP(A4,Лист1!$B$3:$B$2000,1,0)","v":"Цитологическое исследование эндоскопического материала"},{"$f":"f(A4,Лист1!$B$3:$B$1998,10)","v":"Цитологическое исследование эндоскопического материала"}]
["Цитологическое исследование пунктатов полости матки",{"$f":"VLOOKUP(A5,Лист1!$B$3:$B$2000,1,0)","v":"Цитологическое исследование пунктатов полости матки"},{"$f":"f(A5,Лист1!$B$3:$B$1998,10)","v":"Цитологическое исследование пунктатов полости матки"}]
["Цитологическое исследование плевральной жидкости",{"$f":"VLOOKUP(A6,Лист1!$B$3:$B$2000,1,0)","v":"Цитологическое исследование плевральной жидкости"},{"$f":"f(A6,Лист1!$B$3:$B$1998,10)","v":"Цитологическое исследование плевральной жидкости"}]
["Цитологическое исследование мочи",{"$f":"VLOOKUP(A7,Лист1!$B$3:$B$2000,1,0)","v":"Цитологическое исследование мочи"},{"$f":"f(A7,Лист1!$B$3:$B$1998,10)","v":"Цитологическое исследование мочи"}]
["Цитологическое исследование мокроты",{"$f":"VLOOKUP(A8,Лист1!$B$3:$B$2000,1,0)","v":"Цитологическое исследование мокроты"},{"$f":"f(A8,Лист1!$B$3:$B$1998,10)","v":"Цитологическое исследование мокроты"}]
["Цитологич. исследов. соскобов и отпечатков опухолей и опухолев.образований",{"$f":"VLOOKUP(A9,Лист1!$B$3:$B$2000,1,0)","v":{"$error":"#N/A"}},{"$f":"f(A9,Лист1!$B$3:$B$1998,10)","v":""}]
["Фонофорез (без стоимости препарата)",{"$f":"VLOOKUP(A10,Лист1!$B$3:$B$2000,1,0)","v":{"$error":"#N/A"}},{"$f":"f(A10,Лист1!$B$3:$B$1998,10)","v":""}]
["Усиленный корсет грудопояснично-крестцовый для детей и взрослых",{"$f":"VLOOKUP(A11,Лист1!$B$3:$B$2000,1,0)","v":{"$error":"#N/A"}},{"$f":"f(A11,Лист1!$B$3:$B$1998,10)","v":""}]
["УЗИ щитовидной железы в режиме ЦДК",{"$f":"VLOOKUP(A12,Лист1!$B$3:$B$2000,1,0)","v":{"$error":"#N/A"}},{"$f":"f(A12,Лист1!$B$3:$B$1998,10)","v":""}]
["Удаление подкожного импланта",{"$f":"VLOOKUP(A13,Лист1!$B$3:$B$2000,1,0)","v":"Удаление подкожного импланта"},{"$f":"f(A13,Лист1!$B$3:$B$1998,10)","v":"Удаление подкожного импланта"}]
["УЗИ вен гепатобилиарной системы",{"$f":"VLOOKUP(A14,Лист1!$B$3:$B$2000,1,0)","v":{"$error":"#N/A"}},{"$f":"f(A14,Лист1!$B$3:$B$1998,10)","v":""}]
["Стельки ортопедические каркасные Markus (натуральная кожа)",{"$f":"VLOOKUP(A15,Лист1!$B$3:$B$2000,1,0)","v":{"$error":"#N/A"}},{"$f":"f(A15,Лист1!$B$3:$B$1998,10)","v":""}]
["Соскоб на Фемофлор СКРИН Мультикомплекс Real-time",{"$f":"VLOOKUP(A16,Лист1!$B$3:$B$2000,1,0)","v":{"$error":"#N/A"}},{"$f":"f(A16,Лист1!$B$3:$B$1998,10)","v":""}]
["Соскоб на Фемофлор 16",{"$f":"VLOOKUP(A17,Лист1!$B$3:$B$2000,1,0)","v":{"$error":"#N/A"}},{"$f":"f(A17,Лист1!$B$3:$B$1998,10)","v":""}]
["Соскоб на ДНК хламидии (Chlamydia trachomatis)",{"$f":"VLOOKUP(A18,Лист1!$B$3:$B$2000,1,0)","v":{"$error":"#N/A"}},{"$f":"f(A18,Лист1!$B$3:$B$1998,10)","v":""}]
["Соскоб на ДНК уреаплазмы (Ureaplasma urealyticum Т960+parvum)",{"$f":"VLOOKUP(A19,Лист1!$B$3:$B$2000,1,0)","v":{"$error":"#N/A"}},{"$f":"f(A19,Лист1!$B$3:$B$1998,10)","v":""}]
["Соскоб на ДНК уреаплазмы (Ureaplasma urealyticum Т960)",{"$f":"VLOOKUP(A20,Лист1!$B$3:$B$2000,1,0)","v":{"$error":"#N/A"}},{"$f":"f(A20,Лист1!$B$3:$B$1998,10)","v":""}]
["Соскоб на ДНК уреаплазмы (Ureaplasma parvum )",{"$f":"VLOOKUP(A21,Лист1!$B$3:$B$2000,1,0)","v":{"$error":"#N/A"}},{"$f":"f(A21,Лист1!$B$3:$B$1998,10)","v":""}]
["Соскоб на ДНК токсоплазмы (Toxoplasma gondii )",{"$f":"VLOOKUP(A22,Лист1!$B$3:$B$2000,1,0)","v":{"$error":"#N/A"}},{"$f":"f(A22,Лист1!$B$3:$B$1998,10)","v":""}]
["Соскоб на ДНК папилломавирусов 16/18 типов, количественно",{"$f":"VLOOKUP(A23,Лист1!$B$3:$B$2000,1,0)","v":{"$error":"#N/A"}},{"$f":"f(A23,Лист1!$B$3:$B$1998,10)","v":""}]
["Соскоб на ДНК папилломавирусов (Human Papillomavirus, ВПЧ), квант 15",{"$f":"VLOOKUP(A24,Лист1!$B$3:$B$2000,1,0)","v":{"$error":"#N/A"}},{"$f":"f(A24,Лист1!$B$3:$B$1998,10)","v":""}]
["Соскоб на ДНК папилломавирусов (Human Papillomavirus, ВПЧ) 6, 11 типов",{"$f":"VLOOKUP(A25,Лист1!$B$3:$B$2000,1,0)","v":{"$error":"#N/A"}},{"$f":"f(A25,Лист1!$B$3:$B$1998,10)","v":""}]
["Соскоб на ДНК папилломавируса (Human Papillomavirus, ВПЧ) 68,73,82 типов",{"$f":"VLOOKUP(A26,Лист1!$B$3:$B$2000,1,0)","v":{"$error":"#N/A"}},{"$f":"f(A26,Лист1!$B$3:$B$1998,10)","v":""}]
["Соскоб на ДНК папилломавируса (Human Papillomavirus, ВПЧ) 16 типа",{"$f":"VLOOKUP(A27,Лист1!$B$3:$B$2000,1,0)","v":{"$error":"#N/A"}},{"$f":"f(A27,Лист1!$B$3:$B$1998,10)","v":""}]
["Соскоб на ДНК микоплазмы (Mycoplasma hominis )",{"$f":"VLOOKUP(A28,Лист1!$B$3:$B$2000,1,0)","v":{"$error":"#N/A"}},{"$f":"f(A28,Лист1!$B$3:$B$1998,10)","v":""}]
["Соскоб на ДНК гарднереллы (Gardnerella vaginalis)",{"$f":"VLOOKUP(A29,Лист1!$B$3:$B$2000,1,0)","v":{"$error":"#N/A"}},{"$f":"f(A29,Лист1!$B$3:$B$1998,10)","v":""}]
["Соскоб на ДНК вируса простого герпеса(Herpes simlex virus, ВПГ) I и II тип",{"$f":"VLOOKUP(A30,Лист1!$B$3:$B$2000,1,0)","v":{"$error":"#N/A"}},{"$f":"f(A30,Лист1!$B$3:$B$1998,10)","v":""}]
["Соскоб на  ДНК трихомонады (Trichomonas vaginalis)",{"$f":"VLOOKUP(A31,Лист1!$B$3:$B$2000,1,0)","v":{"$error":"#N/A"}},{"$f":"f(A31,Лист1!$B$3:$B$1998,10)","v":""}]
["Соскоб на  ДНК гонококка (Neisseria gonorrhoeae)",{"$f":"VLOOKUP(A32,Лист1!$B$3:$B$2000,1,0)","v":{"$error":"#N/A"}},{"$f":"f(A32,Лист1!$B$3:$B$1998,10)","v":""}]
["Скрининг белка Бенс-Джонса в разовой моче (иммунофиксация)",{"$f":"VLOOKUP(A33,Лист1!$B$3:$B$2000,1,0)","v":"Скрининг белка Бенс-Джонса в разовой моче (иммунофиксация)"},{"$f":"f(A33,Лист1!$B$3:$B$1998,10)","v":"Скрининг белка Бенс-Джонса в разовой моче (иммунофиксация)"}]
["СЕПТОСКРИН Пакетный скрининг в режиме Real-time (сперма)",{"$f":"VLOOKUP(A34,Лист1!$B$3:$B$2000,1,0)","v":{"$error":"#N/A"}},{"$f":"f(A34,Лист1!$B$3:$B$1998,10)","v":"СЕПТОСКРИН - диагностика инфекций мочеполовой системы. Пакетный скрининг в режиме Real-time (соскоб)"}]
["Реабилитация и разработка  одного сустава вручную",{"$f":"VLOOKUP(A35,Лист1!$B$3:$B$2000,1,0)","v":{"$error":"#N/A"}},{"$f":"f(A35,Лист1!$B$3:$B$1998,10)","v":""}]
["Программа пренатального скрининга (PRISCA) II триместра беременности",{"$f":"VLOOKUP(A36,Лист1!$B$3:$B$2000,1,0)","v":{"$error":"#N/A"}},{"$f":"f(A36,Лист1!$B$3:$B$1998,10)","v":"Программа пренатального скрининга (PRISCA) Пренатальный скрининг  I триместра беременности (10-13 недель) PAPP-A, свободная субъединица бета-ХГЧ "}]
["Программа пренатального скрининга (PRISCA) I триместра беременности",{"$f":"VLOOKUP(A37,Лист1!$B$3:$B$2000,1,0)","v":{"$error":"#N/A"}},{"$f":"f(A37,Лист1!$B$3:$B$1998,10)","v":"Программа пренатального скрининга (PRISCA) Пренатальный скрининг  I триместра беременности (10-13 недель) PAPP-A, свободная субъединица бета-ХГЧ "}]
["Проба мочи 3-х стаканная",{"$f":"VLOOKUP(A38,Лист1!$B$3:$B$2000,1,0)","v":{"$error":"#N/A"}},{"$f":"f(A38,Лист1!$B$3:$B$1998,10)","v":""}]
["Прием врача эндокринолога",{"$f":"VLOOKUP(A39,Лист1!$B$3:$B$2000,1,0)","v":{"$error":"#N/A"}},{"$f":"f(A39,Лист1!$B$3:$B$1998,10)","v":"Прием врача эндокринолога высшей категории"}]
["Пренатальный скрининг PRISCA I триместра беременности (10-13 недель) PAPP-A",{"$f":"VLOOKUP(A40,Лист1!$B$3:$B$2000,1,0)","v":{"$error":"#N/A"}},{"$f":"f(A40,Лист1!$B$3:$B$1998,10)","v":"Программа пренатального скрининга (PRISCA) Пренатальный скрининг  I триместра беременности (10-13 недель) PAPP-A, свободная субъединица бета-ХГЧ "}]
["Посев из носа на дифтерию 07-05-071",{"$f":"VLOOKUP(A41,Лист1!$B$3:$B$2000,1,0)","v":{"$error":"#N/A"}},{"$f":"f(A41,Лист1!$B$3:$B$1998,10)","v":""}]
["Подушка  для новорожденных с эффектом памяти 25x23x3.5",{"$f":"VLOOKUP(A42,Лист1!$B$3:$B$2000,1,0)","v":{"$error":"#N/A"}},{"$f":"f(A42,Лист1!$B$3:$B$1998,10)","v":""}]
["Подбор размера влагалищного пессария",{"$f":"VLOOKUP(A43,Лист1!$B$3:$B$2000,1,0)","v":{"$error":"#N/A"}},{"$f":"f(A43,Лист1!$B$3:$B$1998,10)","v":"Подбор размера влагалищного пессария "}]
["Повторный прием врача терапевта  высшей категории/ гастроэнтерология/",{"$f":"VLOOKUP(A44,Лист1!$B$3:$B$2000,1,0)","v":{"$error":"#N/A"}},{"$f":"f(A44,Лист1!$B$3:$B$1998,10)","v":"Повторный прием врача высшей категории (один) в течении 1 недели"}]
["Повторный прием врача эндокринолога высшей категории Ахмадевой Г.А.",{"$f":"VLOOKUP(A45,Лист1!$B$3:$B$2000,1,0)","v":{"$error":"#N/A"}},{"$f":"f(A45,Лист1!$B$3:$B$1998,10)","v":"Повторный прием врача высшей категории (один) в течении 1 недели"}]
["Повторный прием врача гинеколога, кмн, доцента Гафаровой А.А.",{"$f":"VLOOKUP(A46,Лист1!$B$3:$B$2000,1,0)","v":{"$error":"#N/A"}},{"$f":"f(A46,Лист1!$B$3:$B$1998,10)","v":"Повторный прием врача гинеколога, кмн, доцент (один) в течении 1 недели"}]
["Первичный прием врача эндокринолога высшей категории Ахмадевой Г.А.",{"$f":"VLOOKUP(A47,Лист1!$B$3:$B$2000,1,0)","v":{"$error":"#N/A"}},{"$f":"f(A47,Лист1!$B$3:$B$1998,10)","v":"Первичный прием врача гинеколога высшей категории"}]
["Повторный прием врача (один) в течение 1 недели",{"$f":"VLOOKUP(A48,Лист1!$B$3:$B$2000,1,0)","v":{"$error":"#N/A"}},{"$f":"f(A48,Лист1!$B$3:$B$1998,10)","v":"Повторный прием врача высшей категории (один) в течении 1 недели"}]
["Первичный прием врача ортопеда-травматолога Фахрутдинова А.А.",{"$f":"VLOOKUP(A49,Лист1!$B$3:$B$2000,1,0)","v":{"$error":"#N/A"}},{"$f":"f(A49,Лист1!$B$3:$B$1998,10)","v":"Первичный прием врача гинеколога высшей категории"}]
["Первичный прием врача ортопеда травматолога детского кмн Яшиной И.В.",{"$f":"VLOOKUP(A50,Лист1!$B$3:$B$2000,1,0)","v":{"$error":"#N/A"}},{"$f":"f(A50,Лист1!$B$3:$B$1998,10)","v":"Первичный прием врача гинеколога высшей категории"}]
["Первичный прием врача детского ортопеда -травматолога, кмн Андреева П.С.",{"$f":"VLOOKUP(A51,Лист1!$B$3:$B$2000,1,0)","v":{"$error":"#N/A"}},{"$f":"f(A51,Лист1!$B$3:$B$1998,10)","v":"Первичный прием врача гинеколога высшей категории"}]
["Первичный прием врача гинеколога, кмн, доцент Гафаровой А.А.",{"$f":"VLOOKUP(A52,Лист1!$B$3:$B$2000,1,0)","v":{"$error":"#N/A"}},{"$f":"f(A52,Лист1!$B$3:$B$1998,10)","v":"Первичный прием врача гинеколога высшей категории"}]
["Определение содержания подкласса IgG4",{"$f":"VLOOKUP(A53,Лист1!$B$3:$B$2000,1,0)","v":"Определение содержания подкласса IgG4"},{"$f":"f(A53,Лист1!$B$3:$B$1998,10)","v":"Определение содержания подкласса IgG4"}]
["Ортопедические каркасные стельки с силиконовыми вставками Rio",{"$f":"VLOOKUP(A54,Лист1!$B$3:$B$2000,1,0)","v":{"$error":"#N/A"}},{"$f":"f(A54,Лист1!$B$3:$B$1998,10)","v":""}]
["Обследование на сифилис (ИФА + МРП)",{"$f":"VLOOKUP(A55,Лист1!$B$3:$B$2000,1,0)","v":{"$error":"#N/A"}},{"$f":"f(A55,Лист1!$B$3:$B$1998,10)","v":""}]
["Обследование на общий бета-ХГЧ (Онкомаркер)",{"$f":"VLOOKUP(A56,Лист1!$B$3:$B$2000,1,0)","v":{"$error":"#N/A"}},{"$f":"f(A56,Лист1!$B$3:$B$1998,10)","v":""}]
["Обследование на нейрон-специфическая енолаза (NSE )",{"$f":"VLOOKUP(A57,Лист1!$B$3:$B$2000,1,0)","v":{"$error":"#N/A"}},{"$f":"f(A57,Лист1!$B$3:$B$1998,10)","v":""}]
["Обследование на делеции локуса AZF",{"$f":"VLOOKUP(A58,Лист1!$B$3:$B$2000,1,0)","v":{"$error":"#N/A"}},{"$f":"f(A58,Лист1!$B$3:$B$1998,10)","v":""}]
["Обследование на генетическую предрасположенность к остеопорозу",{"$f":"VLOOKUP(A59,Лист1!$B$3:$B$2000,1,0)","v":{"$error":"#N/A"}},{"$f":"f(A59,Лист1!$B$3:$B$1998,10)","v":""}]
["Обследование на бета-2-микроглобулин",{"$f":"VLOOKUP(A60,Лист1!$B$3:$B$2000,1,0)","v":{"$error":"#N/A"}},{"$f":"f(A60,Лист1!$B$3:$B$1998,10)","v":""}]
["Обследование на белок S-100",{"$f":"VLOOKUP(A61,Лист1!$B$3:$B$2000,1,0)","v":{"$error":"#N/A"}},{"$f":"f(A61,Лист1!$B$3:$B$1998,10)","v":""}]
["Обследование на бактерицидную активность крови",{"$f":"VLOOKUP(A62,Лист1!$B$3:$B$2000,1,0)","v":{"$error":"#N/A"}},{"$f":"f(A62,Лист1!$B$3:$B$1998,10)","v":""}]
["Обследование на АТ к односпиральной (денатурированная) ДНК (ssDNA) Jg G",{"$f":"VLOOKUP(A63,Лист1!$B$3:$B$2000,1,0)","v":{"$error":"#N/A"}},{"$f":"f(A63,Лист1!$B$3:$B$1998,10)","v":""}]
["Обследование на АТ к двуспиральной ДНК (dsDNA))Jg G",{"$f":"VLOOKUP(A64,Лист1!$B$3:$B$2000,1,0)","v":{"$error":"#N/A"}},{"$f":"f(A64,Лист1!$B$3:$B$1998,10)","v":""}]
["Обследование на антиядерные АТ (сум.) ANA-screen",{"$f":"VLOOKUP(A65,Лист1!$B$3:$B$2000,1,0)","v":{"$error":"#N/A"}},{"$f":"f(A65,Лист1!$B$3:$B$1998,10)","v":""}]
["Обследование на антитела к эпидермальной базальной мембране",{"$f":"VLOOKUP(A66,Лист1!$B$3:$B$2000,1,0)","v":{"$error":"#N/A"}},{"$f":"f(A66,Лист1!$B$3:$B$1998,10)","v":""}]
["Обследование на антитела к десмосомам кожи",{"$f":"VLOOKUP(A67,Лист1!$B$3:$B$2000,1,0)","v":{"$error":"#N/A"}},{"$f":"f(A67,Лист1!$B$3:$B$1998,10)","v":""}]
["Обследование на антинуклеарный фактор на HEp-2 клетках ( АНФ ) (НИФ)",{"$f":"VLOOKUP(A68,Лист1!$B$3:$B$2000,1,0)","v":{"$error":"#N/A"}},{"$f":"f(A68,Лист1!$B$3:$B$1998,10)","v":""}]
["Обследование на антиген СА 125",{"$f":"VLOOKUP(A69,Лист1!$B$3:$B$2000,1,0)","v":{"$error":"#N/A"}},{"$f":"f(A69,Лист1!$B$3:$B$1998,10)","v":""}]
["Обследование на антиген плоскоклеточной карциномы (SCCA) (ИХА)",{"$f":"VLOOKUP(A70,Лист1!$B$3:$B$2000,1,0)","v":{"$error":"#N/A"}},{"$f":"f(A70,Лист1!$B$3:$B$1998,10)","v":""}]
["Обследование на антиген CA 19-9",{"$f":"VLOOKUP(A71,Лист1!$B$3:$B$2000,1,0)","v":{"$error":"#N/A"}},{"$f":"f(A71,Лист1!$B$3:$B$1998,10)","v":""}]
["Микроскопическое исследование соскобов кожи",{"$f":"VLOOKUP(A72,Лист1!$B$3:$B$2000,1,0)","v":{"$error":"#N/A"}},{"$f":"f(A72,Лист1!$B$3:$B$1998,10)","v":""}]
["Микроскопическое исследование соскоба на грибы",{"$f":"VLOOKUP(A73,Лист1!$B$3:$B$2000,1,0)","v":{"$error":"#N/A"}},{"$f":"f(A73,Лист1!$B$3:$B$1998,10)","v":""}]
["Микроскопическое исследование секрета предстательной железы",{"$f":"VLOOKUP(A74,Лист1!$B$3:$B$2000,1,0)","v":{"$error":"#N/A"}},{"$f":"f(A74,Лист1!$B$3:$B$1998,10)","v":""}]
["Микроскопическое исследование отделяемого глаза (правый)",{"$f":"VLOOKUP(A75,Лист1!$B$3:$B$2000,1,0)","v":{"$error":"#N/A"}},{"$f":"f(A75,Лист1!$B$3:$B$1998,10)","v":""}]
["Микроскопическое исследование отделяемого глаза (левый)",{"$f":"VLOOKUP(A76,Лист1!$B$3:$B$2000,1,0)","v":{"$error":"#N/A"}},{"$f":"f(A76,Лист1!$B$3:$B$1998,10)","v":""}]
["Микроскопическое исследование на трихомонады",{"$f":"VLOOKUP(A77,Лист1!$B$3:$B$2000,1,0)","v":{"$error":"#N/A"}},{"$f":"f(A77,Лист1!$B$3:$B$1998,10)","v":""}]
["Микроскопическое исследование мазка из уретры",{"$f":"VLOOKUP(A78,Лист1!$B$3:$B$2000,1,0)","v":{"$error":"#N/A"}},{"$f":"f(A78,Лист1!$B$3:$B$1998,10)","v":""}]
["Микроскопическое исследование волос",{"$f":"VLOOKUP(A79,Лист1!$B$3:$B$2000,1,0)","v":{"$error":"#N/A"}},{"$f":"f(A79,Лист1!$B$3:$B$1998,10)","v":""}]
["Микробиологическое исследование кала на условно-патогенные бактерии",{"$f":"VLOOKUP(A80,Лист1!$B$3:$B$2000,1,0)","v":{"$error":"#N/A"}},{"$f":"f(A80,Лист1!$B$3:$B$1998,10)","v":"Микробиологическое исследование кала на условно-патогенные бактерии "}]
["Микробиологическое исследование кала на патогенную кишечную группу",{"$f":"VLOOKUP(A81,Лист1!$B$3:$B$2000,1,0)","v":{"$error":"#N/A"}},{"$f":"f(A81,Лист1!$B$3:$B$1998,10)","v":"Микробиологическое исследование кала на патогенную кишечную группу (мед. осмотр) "}]
["Микробиологическое исследование из носа на стафиллококк (мед. осмотр)",{"$f":"VLOOKUP(A82,Лист1!$B$3:$B$2000,1,0)","v":{"$error":"#N/A"}},{"$f":"f(A82,Лист1!$B$3:$B$1998,10)","v":"Микробиологическое исследование из носа на стафиллококк (мед. осмотр) "}]
["Микробиологич. исслед на микрофлору и чувствит. к антибиотикам, моча",{"$f":"VLOOKUP(A83,Лист1!$B$3:$B$2000,1,0)","v":{"$error":"#N/A"}},{"$f":"f(A83,Лист1!$B$3:$B$1998,10)","v":"Микробиологическое исследование на грибы и чувствительность к антимикотикам (моча, мокрота, кал, мазок из зева, мазок из носа, отделяемое глаза, отделяемое половых органов, отделяемое уха, желчь, соскоб, грудное молоко)"}]
["Микробиол. иссл. на микрофлору и чув. к антиб., антисепт. и бактериоф., нос",{"$f":"VLOOKUP(A84,Лист1!$B$3:$B$2000,1,0)","v":{"$error":"#N/A"}},{"$f":"f(A84,Лист1!$B$3:$B$1998,10)","v":""}]
["Микробиол. иссл. на микрофлору и чув. к антиб., антисепт. и бактериоф., зев",{"$f":"VLOOKUP(A85,Лист1!$B$3:$B$2000,1,0)","v":{"$error":"#N/A"}},{"$f":"f(A85,Лист1!$B$3:$B$1998,10)","v":""}]
["Микр. иссл. на микрофл. и чувст. к антиб., антисепт. и бактериоф. биомат-л",{"$f":"VLOOKUP(A86,Лист1!$B$3:$B$2000,1,0)","v":{"$error":"#N/A"}},{"$f":"f(A86,Лист1!$B$3:$B$1998,10)","v":""}]
["МИ отделяемого половых органов на трихомонады",{"$f":"VLOOKUP(A87,Лист1!$B$3:$B$2000,1,0)","v":{"$error":"#N/A"}},{"$f":"f(A87,Лист1!$B$3:$B$1998,10)","v":""}]
["МИ на стрептококк пиогенный и чувствительность к антибиотикам (нос)",{"$f":"VLOOKUP(A88,Лист1!$B$3:$B$2000,1,0)","v":{"$error":"#N/A"}},{"$f":"f(A88,Лист1!$B$3:$B$1998,10)","v":""}]
["МИ на стрептококк пиогенный и чувствительность к антибиотикам (зев)",{"$f":"VLOOKUP(A89,Лист1!$B$3:$B$2000,1,0)","v":{"$error":"#N/A"}},{"$f":"f(A89,Лист1!$B$3:$B$1998,10)","v":""}]
["МИ на микрофлору и чувств-сть к антибиотикам, антисептикам и бактериофагам",{"$f":"VLOOKUP(A90,Лист1!$B$3:$B$2000,1,0)","v":{"$error":"#N/A"}},{"$f":"f(A90,Лист1!$B$3:$B$1998,10)","v":""}]
["МИ на микрофлору и чувствительность к антибиотикам (мазок из носа)",{"$f":"VLOOKUP(A91,Лист1!$B$3:$B$2000,1,0)","v":{"$error":"#N/A"}},{"$f":"f(A91,Лист1!$B$3:$B$1998,10)","v":""}]
["МИ на анаэробную микрофлору (отделяемое раны, очаг, аспират, биоптат)",{"$f":"VLOOKUP(A92,Лист1!$B$3:$B$2000,1,0)","v":{"$error":"#N/A"}},{"$f":"f(A92,Лист1!$B$3:$B$1998,10)","v":""}]
["МИ кала на патогенную кишечную группу + дизбактериоз кишечника",{"$f":"VLOOKUP(A93,Лист1!$B$3:$B$2000,1,0)","v":{"$error":"#N/A"}},{"$f":"f(A93,Лист1!$B$3:$B$1998,10)","v":""}]
["МИ кала на патогенную кишечную группу (мед. осмотр)",{"$f":"VLOOKUP(A94,Лист1!$B$3:$B$2000,1,0)","v":{"$error":"#N/A"}},{"$f":"f(A94,Лист1!$B$3:$B$1998,10)","v":""}]
["МИ кала на возбудителей кишечной инфекции и чувствительность к антибиотикам",{"$f":"VLOOKUP(A95,Лист1!$B$3:$B$2000,1,0)","v":{"$error":"#N/A"}},{"$f":"f(A95,Лист1!$B$3:$B$1998,10)","v":""}]
["Межпальцевый силиконовый вкладыш",{"$f":"VLOOKUP(A96,Лист1!$B$3:$B$2000,1,0)","v":{"$error":"#N/A"}},{"$f":"f(A96,Лист1!$B$3:$B$1998,10)","v":""}]
["Массаж шейно-грудного отдела позвоночника и верхней конечности (одной)",{"$f":"VLOOKUP(A97,Лист1!$B$3:$B$2000,1,0)","v":{"$error":"#N/A"}},{"$f":"f(A97,Лист1!$B$3:$B$1998,10)","v":""}]
["Массаж шейно-воротниковой зоны, верхних конечностей (двух) (45 минут)",{"$f":"VLOOKUP(A98,Лист1!$B$3:$B$2000,1,0)","v":{"$error":"#N/A"}},{"$f":"f(A98,Лист1!$B$3:$B$1998,10)","v":""}]
["Массаж тазобедренного сустава и ягодичной области / нижней конечности",{"$f":"VLOOKUP(A99,Лист1!$B$3:$B$2000,1,0)","v":{"$error":"#N/A"}},{"$f":"f(A99,Лист1!$B$3:$B$1998,10)","v":""}]